Workbook

Sheet 6M
A1: GALGOTIAS UNIVERSITY
A2: UTTAR PRADESH
A3: CAT II SECOND SEMESTER 2021-22, June 2022
A4: ATTENDANCE SHEET/SEATING PLAN
A5: Date of Exam: 06th June 2022 TIMINGS : 10:00 AM - 11.30 AM
A6: S. No. | B6: Admission No. | C6: Enrollment No. | D6: Name | E6: Program | F6: Sec | G6: Sub Code | H6: Room No. | I6: Seat No.
A7: 1 | B7: 21SCSE1011407 | C7: 21131011621 | D7: Abdul Hussamad Aarfin | E7: B.Tech CSE II Sem | F7: Sec-1 | G7: BBS01T1003 | H7: C003 | I7: 1
A8: =+A7+1 -> 2 | B8: 21SCSE1010068 | C8: 21131011658 | D8: Raj Nandani | E8: B.Tech CSE II Sem | F8: Sec-1 | G8: BBS01T1003 | H8: C003 | I8: =+I7+2 -> 3
A9: 2 | B9: 21SCSE1010134 | C9: 21131011708 | D9: Manas Pandey | E9: B.Tech CSE II Sem | F9: Sec-1 | G9: BBS01T1003 | H9: C003 | I9: =+I8+2 -> 5
A10: 3 | B10: 21SCSE1010137 | C10: 21131011711 | D10: priyanshu gupta | E10: B.Tech CSE II Sem | F10: Sec-1 | G10: BBS01T1003 | H10: C003 | I10: 7
A11: 3 | B11: 21SCSE1010218 | C11: 21131011774 | D11: Neelkant mani Upadhyay | E11: B.Tech CSE II Sem | F11: Sec-1 | G11: BBS01T1003 | H11: C003 | I11: 9
A12: 4 | B12: 21SCSE1010232 | C12: 21131011786 | D12: Anshu maurya | E12: B.Tech CSE II Sem | F12: Sec-1 | G12: BBS01T1003 | H12: C003 | I12: 11
A13: 4 | B13: 21SCSE1010249 | C13: 21131011799 | D13: Rachit Bora | E13: B.Tech CSE II Sem | F13: Sec-1 | G13: BBS01T1003 | H13: C003 | I13: 13
A14: 5 | B14: 21SCSE1010279 | C14: 21131011827 | D14: Rishabh Dixit | E14: B.Tech CSE II Sem | F14: Sec-1 | G14: BBS01T1003 | H14: C003 | I14: 15
A15: 5 | B15: 21SCSE1010306 | C15: 21131011851 | D15: Kajal Sharma | E15: B.Tech CSE II Sem | F15: Sec-1 | G15: BBS01T1003 | H15: C003 | I15: 17
A16: 6 | B16: 21SCSE1011276 | C16: 21131011853 | D16: VIVEK KUMAR | E16: B.Tech CSE II Sem | F16: Sec-1 | G16: BBS01T1003 | H16: C003 | I16: 19
A17: 6 | B17: 21SCSE1010321 | C17: 21131011864 | D17: Mayur Pratap Singh | E17: B.Tech CSE II Sem | F17: Sec-1 | G17: BBS01T1003 | H17: C003 | I17: 21
A18: 7 | B18: 21SCSE1010333 | C18: 21131011871 | D18: AMBESH YADAV | E18: B.Tech CSE II Sem | F18: Sec-1 | G18: BBS01T1003 | H18: C003 | I18: 23
A19: 7 | B19: 21SCSE1010355 | C19: 21131011888 | D19: Devesh Kumar | E19: B.Tech CSE II Sem | F19: Sec-1 | G19: BBS01T1003 | H19: C003 | I19: 25
A20: 8 | B20: 21SCSE1010365 | C20: 21131011898 | D20: vansh nagar | E20: B.Tech CSE II Sem | F20: Sec-1 | G20: BBS01T1003 | H20: C003 | I20: 27
A21: 8 | B21: 21SCSE1010390 | C21: 21131011920 | D21: Yash Rajput | E21: B.Tech CSE II Sem | F21: Sec-1 | G21: BBS01T1003 | H21: C003 | I21: 29
A22: 9 | B22: 21SCSE1010416 | C22: 21131011939 | D22: Manvi Chaudhary | E22: B.Tech CSE II Sem | F22: Sec-1 | G22: BBS01T1003 | H22: C003 | I22: 31
A23: 9 | B23: 21SCSE1010443 | C23: 21131011961 | D23: PARMITA MAURYA | E23: B.Tech CSE II Sem | F23: Sec-1 | G23: BBS01T1003 | H23: C003 | I23: 33
A24: 10 | B24: 21SCSE1010452 | C24: 21131011969 | D24: Mohammad Irshad Ali | E24: B.Tech CSE II Sem | F24: Sec-1 | G24: BBS01T1003 | H24: C003 | I24: 35
A25: 10 | B25: 21SCSE1010472 | C25: 21131011987 | D25: Mayank Maheshwari | E25: B.Tech CSE II Sem | F25: Sec-1 | G25: BBS01T1003 | H25: C003 | I25: 37
A26: 11 | B26: 21SCSE1010500 | C26: 21131012013 | D26: Saksham Kaushik | E26: B.Tech CSE II Sem | F26: Sec-1 | G26: BBS01T1003 | H26: C003 | I26: 39
A27: 11 | B27: 21SCSE1010529 | C27: 21131012036 | D27: suraj yadav | E27: B.Tech CSE II Sem | F27: Sec-1 | G27: BBS01T1003 | H27: C003 | I27: 41
A28: 12 | B28: 21SCSE1010537 | C28: 21131012040 | D28: Anmol Ranjan | E28: B.Tech CSE II Sem | F28: Sec-1 | G28: BBS01T1003 | H28: C003 | I28: 43
A29: 12 | B29: 21SCSE1010540 | C29: 21131012042 | D29: Shreya Jha | E29: B.Tech CSE II Sem | F29: Sec-1 | G29: BBS01T1003 | H29: C003 | I29: 45
A30: 13 | B30: 21SCSE1010587 | C30: 21131012087 | D30: Amit Pant | E30: B.Tech CSE II Sem | F30: Sec-1 | G30: BBS01T1003 | H30: C003 | I30: 47
A31: 13 | B31: 21SCSE1010591 | C31: 21131012092 | D31: akanksha singh | E31: B.Tech CSE II Sem | F31: Sec-1 | G31: BBS01T1003 | H31: C003 | I31: 49
A32: 14 | B32: 21SCSE1011363 | C32: 21131012110 | D32: Aryan Prasad | E32: B.Tech CSE II Sem | F32: Sec-1 | G32: BBS01T1003 | H32: C003 | I32: 51
A33: 14 | B33: 21SCSE1010618 | C33: 21131012116 | D33: Nizam | E33: B.Tech CSE II Sem | F33: Sec-1 | G33: BBS01T1003 | H33: C003 | I33: 53
A34: 15 | B34: 21SCSE1010620 | C34: 21131012118 | D34: Shivang Singh | E34: B.Tech CSE II Sem | F34: Sec-1 | G34: BBS01T1003 | H34: C003 | I34: 55
A35: 15 | B35: 21SCSE1010626 | C35: 21131012123 | D35: Adil Khan | E35: B.Tech CSE II Sem | F35: Sec-1 | G35: BBS01T1003 | H35: C003 | I35: 57
A36: 16 | B36: 21SCSE1010627 | C36: 21131012124 | D36: Paras Maheshwari | E36: B.Tech CSE II Sem | F36: Sec-1 | G36: BBS01T1003 | H36: C003 | I36: 59
A37: 16 | B37: 21SCSE1010656 | C37: 21131012148 | D37: Jatin Suteri | E37: B.Tech CSE II Sem | F37: Sec-1 | G37: BBS01T1003 | H37: C008 | I37: 1
A38: 17 | B38: 21SCSE1010657 | C38: 21131012149 | D38: Jaya Mishra | E38: B.Tech CSE II Sem | F38: Sec-1 | G38: BBS01T1003 | H38: C008 | I38: =+I37+2 -> 3
A39: 17 | B39: 21SCSE1010664 | C39: 21131012156 | D39: Shubh Gupta | E39: B.Tech CSE II Sem | F39: Sec-1 | G39: BBS01T1003 | H39: C008 | I39: =+I38+2 -> 5
A40: 18 | B40: 21SCSE1010666 | C40: 21131012160 | D40: Javed Hussain | E40: B.Tech CSE II Sem | F40: Sec-1 | G40: BBS01T1003 | H40: C008 | I40: 7
A41: 18 | B41: 21SCSE1010680 | C41: 21131012174 | D41: SHASHANK SWAROOP SAXENA | E41: B.Tech CSE II Sem | F41: Sec-1 | G41: BBS01T1003 | H41: C008 | I41: 9
A42: 19 | B42: 21SCSE1010682 | C42: 21131012176 | D42: SHAMI ARSHAD | E42: B.Tech CSE II Sem | F42: Sec-1 | G42: BBS01T1003 | H42: C008 | I42: 11
A43: 19 | B43: 21SCSE1010696 | C43: 21131012188 | D43: Ashutosh Mishra | E43: B.Tech CSE II Sem | F43: Sec-1 | G43: BBS01T1003 | H43: C008 | I43: 13
A44: 20 | B44: 21SCSE1010701 | C44: 21131012192 | D44: Vanshaj Saxena | E44: B.Tech CSE II Sem | F44: Sec-1 | G44: BBS01T1003 | H44: C008 | I44: 15
A45: 20 | B45: 21SCSE1010702 | C45: 21131012193 | D45: Adarsh Sharma | E45: B.Tech CSE II Sem | F45: Sec-1 | G45: BBS01T1003 | H45: C008 | I45: 17
A46: 21 | B46: 21SCSE1010714 | C46: 21131012204 | D46: Akriti Rawat | E46: B.Tech CSE II Sem | F46: Sec-1 | G46: BBS01T1003 | H46: C008 | I46: 19
A47: 21 | B47: 21SCSE1010779 | C47: 21131012264 | D47: Jayestha Singh | E47: B.Tech CSE II Sem | F47: Sec-1 | G47: BBS01T1003 | H47: C008 | I47: 21
A48: 22 | B48: 21SCSE1010781 | C48: 21131012266 | D48: Keshav Lohiya | E48: B.Tech CSE II Sem | F48: Sec-1 | G48: BBS01T1003 | H48: C008 | I48: 23
A49: 22 | B49: 21SCSE1010809 | C49: 21131012288 | D49: Yogesh saini | E49: B.Tech CSE II Sem | F49: Sec-1 | G49: BBS01T1003 | H49: C008 | I49: 25
A50: 23 | B50: 21SCSE1010815 | C50: 21131012292 | D50: Yamini Raj | E50: B.Tech CSE II Sem | F50: Sec-1 | G50: BBS01T1003 | H50: C008 | I50: 27
A51: 23 | B51: 21SCSE1010833 | C51: 21131012305 | D51: Kanika Gupta | E51: B.Tech CSE II Sem | F51: Sec-1 | G51: BBS01T1003 | H51: C008 | I51: 29
A52: 24 | B52: 21SCSE1010837 | C52: 21131012308 | D52: Vanshika Chandna | E52: B.Tech CSE II Sem | F52: Sec-1 | G52: BBS01T1003 | H52: C008 | I52: 31
A53: 24 | B53: 21SCSE1010867 | C53: 21131012335 | D53: VAIBHAV SRIVASTAVA | E53: B.Tech CSE II Sem | F53: Sec-1 | G53: BBS01T1003 | H53: C008 | I53: 33
A54: 25 | B54: 21SCSE1010894 | C54: 21131012354 | D54: shweta pandey | E54: B.Tech CSE II Sem | F54: Sec-1 | G54: BBS01T1003 | H54: C008 | I54: 35
A55: 25 | B55: 21SCSE1010898 | C55: 21131012356 | D55: Yash Tijil | E55: B.Tech CSE II Sem | F55: Sec-1 | G55: BBS01T1003 | H55: C008 | I55: 37
A56: 26 | B56: 21SCSE1010910 | C56: 21131012367 | D56: Yash Mohan Samrutwar | E56: B.Tech CSE II Sem | F56: Sec-1 | G56: BBS01T1003 | H56: C008 | I56: 39
A57: 26 | B57: 21SCSE1010915 | C57: 21131012372 | D57: Deepankar Joshi | E57: B.Tech CSE II Sem | F57: Sec-1 | G57: BBS01T1003 | H57: C008 | I57: 41
A58: 27 | B58: 21SCSE1010937 | C58: 21131012392 | D58: Arpit Garg | E58: B.Tech CSE II Sem | F58: Sec-1 | G58: BBS01T1003 | H58: C008 | I58: 43
A59: 27 | B59: 21SCSE1011177 | C59: 21131012393 | D59: Vikash Giri | E59: B.Tech CSE II Sem | F59: Sec-1 | G59: BBS01T1003 | H59: C008 | I59: 45
A60: 28 | B60: 21SCSE1010948 | C60: 21131012402 | D60: Samyak karmant Anand | E60: B.Tech CSE II Sem | F60: Sec-1 | G60: BBS01T1003 | H60: C008 | I60: 47
A61: 28 | B61: 21SCSE1011369 | C61: 21131012564 | D61: Muskan Singh | E61: B.Tech CSE II Sem | F61: Sec-1 | G61: BBS01T1003 | H61: C008 | I61: 49
A62: 29 | B62: 21SCSE1011219 | C62: 21131012638 | D62: shan ali | E62: B.Tech CSE II Sem | F62: Sec-1 | G62: BBS01T1003 | H62: C008 | I62: 51
A63: 29 | B63: 21SCSE1011221 | C63: 21131012640 | D63: Kaushal singh | E63: B.Tech CSE II Sem | F63: Sec-1 | G63: BBS01T1003 | H63: C008 | I63: 53
A64: 30 | B64: 21SCSE1011238 | C64: 21131012656 | D64: Aryan Saifi | E64: B.Tech CSE II Sem | F64: Sec-1 | G64: BBS01T1003 | H64: C008 | I64: 55
A65: 30 | B65: 21SCSE1011241 | C65: 21131012658 | D65: rahul kumar | E65: B.Tech CSE II Sem | F65: Sec-1 | G65: BBS01T1003 | H65: C008 | I65: 57
A66: 31 | B66: 21SCSE1011244 | C66: 21131012660 | D66: Aniket singh | E66: B.Tech CSE II Sem | F66: Sec-1 | G66: BBS01T1003 | H66: C008 | I66: 59
A67: 31 | B67: 21SCSE1011248 | C67: 21131012664 | D67: Sirajuddin | E67: B.Tech CSE II Sem | F67: Sec-1 | G67: BBS01T1003 | H67: C107 | I67: 1
A68: 32 | B68: 21SCSE1011250 | C68: 21131012666 | D68: Anshil Chaudhary | E68: B.Tech CSE II Sem | F68: Sec-1 | G68: BBS01T1003 | H68: C107 | I68: =+I67+2 -> 3
A69: 32 | B69: 21SCSE1011254 | C69: 21131012669 | D69: Ujjwal Raj | E69: B.Tech CSE II Sem | F69: Sec-1 | G69: BBS01T1003 | H69: C107 | I69: =+I68+2 -> 5
A70: 33 | B70: 21SCSE1011259 | C70: 21131012674 | D70: Satyam Kumar Srivastava | E70: B.Tech CSE II Sem | F70: Sec-1 | G70: BBS01T1003 | H70: C107 | I70: 7
A71: 33 | B71: 21SCSE1011262 | C71: 21131012677 | D71: Tanisha Rastogi | E71: B.Tech CSE II Sem | F71: Sec-1 | G71: BBS01T1003 | H71: C107 | I71: 9
A72: =+A71+1 -> 34 | B72: 21SCSE1011264 | C72: 21131012679 | D72: Pranav Tiwary | E72: B.Tech CSE II Sem | F72: Sec-1 | G72: BBS01T1003 | H72: C107 | I72: 11
A73: 34 | B73: 21SCSE1011266 | C73: 21131012681 | D73: SIDDHARTHA RATAN | E73: B.Tech CSE II Sem | F73: Sec-1 | G73: BBS01T1003 | H73: C107 | I73: 13
A74: 35 | B74: 21SCSE1011303 | C74: 21131012682 | D74: MUHAMMAD ADNAN KHAN | E74: B.Tech CSE II Sem | F74: Sec-1 | G74: BBS01T1003 | H74: C107 | I74: 15
A75: 35 | B75: 21SCSE1011271 | C75: 21131012684 | D75: ANKIT KUMAR | E75: B.Tech CSE II Sem | F75: Sec-1 | G75: BBS01T1003 | H75: C107 | I75: 17
A76: 36 | B76: 21SCSE1011395 | C76: 21131012689 | D76: Shubhankar Bagchi | E76: B.Tech CSE II Sem | F76: Sec-1 | G76: BBS01T1003 | H76: C107 | I76: 19
A77: 36 | B77: 21SCSE1011439 | C77: 21131012745 | D77: Abhishek Pal | E77: B.Tech CSE II Sem | F77: Sec-1 | G77: BBS01T1003 | H77: C107 | I77: 21
A78: 37 | B78: 21SCSE1180005 | C78: 21131180254 | D78: Tanu kumari | E78: B.Tech CS (AIML) II Sem | F78: Sec-1 | G78: BBS01T1003 | H78: C107 | I78: 23
A79: 37 | B79: 21SCSE1180007 | C79: 21131180256 | D79: SANNYA SRIVASTAVA | E79: B.Tech CS (AIML) II Sem | F79: Sec-1 | G79: BBS01T1003 | H79: C107 | I79: 25
A80: 38 | B80: 21SCSE1180008 | C80: 21131180257 | D80: SAMRIDDHI GUPTA | E80: B.Tech CS (AIML) II Sem | F80: Sec-1 | G80: BBS01T1003 | H80: C107 | I80: 27
A81: 38 | B81: 21SCSE1180018 | C81: 21131180265 | D81: Aayushman Sharma | E81: B.Tech CS (AIML) II Sem | F81: Sec-1 | G81: BBS01T1003 | H81: C107 | I81: 29
A82: 39 | B82: 21SCSE1180020 | C82: 21131180267 | D82: Pratham Gangwal | E82: B.Tech CS (AIML) II Sem | F82: Sec-1 | G82: BBS01T1003 | H82: C107 | I82: 31
A83: 39 | B83: 21SCSE1180030 | C83: 21131180271 | D83: Aayushi Mathur | E83: B.Tech CS (AIML) II Sem | F83: Sec-1 | G83: BBS01T1003 | H83: C107 | I83: 33
A84: 40 | B84: 21SCSE1180025 | C84: 21131180275 | D84: akshat kamboj | E84: B.Tech CS (AIML) II Sem | F84: Sec-1 | G84: BBS01T1003 | H84: C107 | I84: 35
A85: 40 | B85: 21SCSE1180026 | C85: 21131180276 | D85: rushil darshan khare | E85: B.Tech CS (AIML) II Sem | F85: Sec-1 | G85: BBS01T1003 | H85: C107 | I85: 37
A86: 41 | B86: 21SCSE1180217 | C86: 21131180278 | D86: Kumar Alok Ranjan | E86: B.Tech CS (AIML) II Sem | F86: Sec-1 | G86: BBS01T1003 | H86: C107 | I86: 39
A87: 41 | B87: 21SCSE1180035 | C87: 21131180282 | D87: Bhavya singhal | E87: B.Tech CS (AIML) II Sem | F87: Sec-1 | G87: BBS01T1003 | H87: C107 | I87: 41
A88: 42 | B88: 21SCSE1180039 | C88: 21131180286 | D88: Riya Kashyap | E88: B.Tech CS (AIML) II Sem | F88: Sec-1 | G88: BBS01T1003 | H88: C107 | I88: 43
A89: 42 | B89: 21SCSE1180110 | C89: 21131180296 | D89: Vishnu . | E89: B.Tech CS (AIML) II Sem | F89: Sec-1 | G89: BBS01T1003 | H89: C107 | I89: 45
A90: 43 | B90: 21SCSE1180219 | C90: 21131180298 | D90: ROHIT KUMAR | E90: B.Tech CS (AIML) II Sem | F90: Sec-1 | G90: BBS01T1003 | H90: C107 | I90: 47
A91: 43 | B91: 21SCSE1180049 | C91: 21131180299 | D91: Ayush Mishra | E91: B.Tech CS (AIML) II Sem | F91: Sec-1 | G91: BBS01T1003 | H91: C107 | I91: 49
A92: 44 | B92: 21SCSE1180050 | C92: 21131180300 | D92: Nakul rana | E92: B.Tech CS (AIML) II Sem | F92: Sec-1 | G92: BBS01T1003 | H92: C107 | I92: 51
A93: 44 | B93: 21SCSE1180051 | C93: 21131180301 | D93: Garvit Verma | E93: B.Tech CS (AIML) II Sem | F93: Sec-1 | G93: BBS01T1003 | H93: C107 | I93: 53
A94: 45 | B94: 21SCSE1180218 | C94: 21131180304 | D94: gurjas kaur . | E94: B.Tech CS (AIML) II Sem | F94: Sec-1 | G94: BBS01T1003 | H94: C107 | I94: 55
A95: 45 | B95: 21SCSE1180057 | C95: 21131180307 | D95: Paras Singhal | E95: B.Tech CS (AIML) II Sem | F95: Sec-1 | G95: BBS01T1003 | H95: C107 | I95: 57
A96: 46 | B96: 21SCSE1180058 | C96: 21131180308 | D96: Kritika Pandey | E96: B.Tech CS (AIML) II Sem | F96: Sec-1 | G96: BBS01T1003 | H96: C107 | I96: 59
A97: 46 | B97: 21SCSE1180059 | C97: 21131180309 | D97: vanshika bhardwaj | E97: B.Tech CS (AIML) II Sem | F97: Sec-1 | G97: BBS01T1003 | H97: C108 | I97: 1
A98: 47 | B98: 21SCSE1180060 | C98: 21131180310 | D98: Pratham Singh Chauhan | E98: B.Tech CS (AIML) II Sem | F98: Sec-1 | G98: BBS01T1003 | H98: C108 | I98: =+I97+2 -> 3
A99: 47 | B99: 21SCSE1180061 | C99: 21131180311 | D99: Adarsh Singh | E99: B.Tech CS (AIML) II Sem | F99: Sec-1 | G99: BBS01T1003 | H99: C108 | I99: =+I98+2 -> 5
A100: 48 | B100: 21SCSE1180062 | C100: 21131180312 | D100: Bhavya Kukreti | E100: B.Tech CS (AIML) II Sem | F100: Sec-1 | G100: BBS01T1003 | H100: C108 | I100: 7
A101: 48 | B101: 21SCSE1180063 | C101: 21131180313 | D101: Prince Kumar | E101: B.Tech CS (AIML) II Sem | F101: Sec-1 | G101: BBS01T1003 | H101: C108 | I101: 9
A102: 49 | B102: 21SCSE1180064 | C102: 21131180314 | D102: Ayush Ranjan | E102: B.Tech CS (AIML) II Sem | F102: Sec-1 | G102: BBS01T1003 | H102: C108 | I102: 11
A103: 49 | B103: 21SCSE1180066 | C103: 21131180316 | D103: Dhananjay Singh | E103: B.Tech CS (AIML) II Sem | F103: Sec-1 | G103: BBS01T1003 | H103: C108 | I103: 13
A104: 50 | B104: 21SCSE1180068 | C104: 21131180318 | D104: Abhishek Kumar Singh | E104: B.Tech CS (AIML) II Sem | F104: Sec-1 | G104: BBS01T1003 | H104: C108 | I104: 15
A105: 50 | B105: 21SCSE1180072 | C105: 21131180323 | D105: Manas Chauhan | E105: B.Tech CS (AIML) II Sem | F105: Sec-1 | G105: BBS01T1003 | H105: C108 | I105: 17
A106: 51 | B106: 21SCSE1180076 | C106: 21131180325 | D106: Zafeer Khan | E106: B.Tech CS (AIML) II Sem | F106: Sec-1 | G106: BBS01T1003 | H106: C108 | I106: 19
A107: 51 | B107: 21SCSE1180086 | C107: 21131180331 | D107: Tushar Panwar | E107: B.Tech CS (AIML) II Sem | F107: Sec-1 | G107: BBS01T1003 | H107: C108 | I107: 21
A108: 52 | B108: 21SCSE1180099 | C108: 21131180333 | D108: BHUMIKA GUPTA | E108: B.Tech CS (AIML) II Sem | F108: Sec-1 | G108: BBS01T1003 | H108: C108 | I108: 23
A109: 52 | B109: 21SCSE1180091 | C109: 21131180336 | D109: Abhiraj Singh Sengar | E109: B.Tech CS (AIML) II Sem | F109: Sec-1 | G109: BBS01T1003 | H109: C108 | I109: 25
A110: 53 | B110: 21SCSE1180092 | C110: 21131180337 | D110: saksham Kumar singh | E110: B.Tech CS (AIML) II Sem | F110: Sec-1 | G110: BBS01T1003 | H110: C108 | I110: 27
A111: 53 | B111: 21SCSE1180095 | C111: 21131180341 | D111: Kushagra Chaudhary | E111: B.Tech CS (AIML) II Sem | F111: Sec-1 | G111: BBS01T1003 | H111: C108 | I111: 29
A112: 54 | B112: 21SCSE1180096 | C112: 21131180342 | D112: Shubhangi Jain | E112: B.Tech CS (AIML) II Sem | F112: Sec-1 | G112: BBS01T1003 | H112: C108 | I112: 31
A113: 54 | B113: 21SCSE1180097 | C113: 21131180343 | D113: Sulekha Mondal | E113: B.Tech CS (AIML) II Sem | F113: Sec-1 | G113: BBS01T1003 | H113: C108 | I113: 33
A114: 55 | B114: 21SCSE1180150 | C114: 21131180344 | D114: Gurudas maurya | E114: B.Tech CS (AIML) II Sem | F114: Sec-1 | G114: BBS01T1003 | H114: C108 | I114: 35
A115: 55 | B115: 21SCSE1180101 | C115: 21131180346 | D115: Aastha | E115: B.Tech CS (AIML) II Sem | F115: Sec-1 | G115: BBS01T1003 | H115: C108 | I115: 37
A116: 56 | B116: 21SCSE1180104 | C116: 21131180349 | D116: Shailja Mishra | E116: B.Tech CS (AIML) II Sem | F116: Sec-1 | G116: BBS01T1003 | H116: C108 | I116: 39
A117: 56 | B117: 21SCSE1180109 | C117: 21131180354 | D117: Ayush Aggarwal | E117: B.Tech CS (AIML) II Sem | F117: Sec-1 | G117: BBS01T1003 | H117: C108 | I117: 41
A118: 57 | B118: 21SCSE1180111 | C118: 21131180355 | D118: Dikshay kumar | E118: B.Tech CS (AIML) II Sem | F118: Sec-1 | G118: BBS01T1003 | H118: C108 | I118: 43
A119: 57 | B119: 21SCSE1180121 | C119: 21131180359 | D119: Ayush kumar Sinha | E119: B.Tech CS (AIML) II Sem | F119: Sec-1 | G119: BBS01T1003 | H119: C108 | I119: 45
A120: 58 | B120: 21SCSE1180122 | C120: 21131180360 | D120: Ayush Srivastava | E120: B.Tech CS (AIML) II Sem | F120: Sec-1 | G120: BBS01T1003 | H120: C108 | I120: 47
A121: 58 | B121: 21SCSE1180123 | C121: 21131180361 | D121: kushagra sharma | E121: B.Tech CS (AIML) II Sem | F121: Sec-1 | G121: BBS01T1003 | H121: C108 | I121: 49
A122: 59 | B122: 21SCSE1180126 | C122: 21131180364 | D122: Darshika gupta | E122: B.Tech CS (AIML) II Sem | F122: Sec-1 | G122: BBS01T1003 | H122: C108 | I122: 51
A123: 59 | B123: 21SCSE1180130 | C123: 21131180369 | D123: Pranay Khati | E123: B.Tech CS (AIML) II Sem | F123: Sec-1 | G123: BBS01T1003 | H123: C108 | I123: 53
A124: 60 | B124: 21SCSE1180131 | C124: 21131180370 | D124: Sanchit Khudaniya | E124: B.Tech CS (AIML) II Sem | F124: Sec-1 | G124: BBS01T1003 | H124: C108 | I124: 55
A125: 60 | B125: 21SCSE1180132 | C125: 21131180371 | D125: Paras Seekhwal | E125: B.Tech CS (AIML) II Sem | F125: Sec-1 | G125: BBS01T1003 | H125: C108 | I125: 57
A126: 61 | B126: 21SCSE1180134 | C126: 21131180373 | D126: Rishabh Jaiswal | E126: B.Tech CS (AIML) II Sem | F126: Sec-1 | G126: BBS01T1003 | H126: C108 | I126: 59
A127: 61 | B127: 21SCSE1180192 | C127: 21131180376 | D127: Harshit Singh | E127: B.Tech CS (AIML) II Sem | F127: Sec-1 | G127: BBS01T1003 | H127: C109 | I127: 1
A128: 62 | B128: 21SCSE1180136 | C128: 21131180379 | D128: Adarsh Bajpai | E128: B.Tech CS (AIML) II Sem | F128: Sec-1 | G128: BBS01T1003 | H128: C109 | I128: =+I127+2 -> 3
A129: 62 | B129: 21SCSE1180138 | C129: 21131180380 | D129: Aryan Singh | E129: B.Tech CS (AIML) II Sem | F129: Sec-1 | G129: BBS01T1003 | H129: C109 | I129: =+I128+2 -> 5
A130: 63 | B130: 21SCSE1180139 | C130: 21131180381 | D130: Madhav Gumber | E130: B.Tech CS (AIML) II Sem | F130: Sec-1 | G130: BBS01T1003 | H130: C109 | I130: 7
A131: 63 | B131: 21SCSE1180195 | C131: 21131180382 | D131: shariq . | E131: B.Tech CS (AIML) II Sem | F131: Sec-1 | G131: BBS01T1003 | H131: C109 | I131: 9
A132: 64 | B132: 21SCSE1180140 | C132: 21131180383 | D132: AYUSH RANJAN | E132: B.Tech CS (AIML) II Sem | F132: Sec-1 | G132: BBS01T1003 | H132: C109 | I132: 11
A133: 64 | B133: 21SCSE1180141 | C133: 21131180384 | D133: Ayush Choudhary | E133: B.Tech CS (AIML) II Sem | F133: Sec-1 | G133: BBS01T1003 | H133: C109 | I133: 13
A134: 65 | B134: 21SCSE1180142 | C134: 21131180385 | D134: Sparsh Jain | E134: B.Tech CS (AIML) II Sem | F134: Sec-1 | G134: BBS01T1003 | H134: C109 | I134: 15
A135: 65 | B135: 21SCSE1180144 | C135: 21131180388 | D135: Govind Kumar Prajapati | E135: B.Tech CS (AIML) II Sem | F135: Sec-1 | G135: BBS01T1003 | H135: C109 | I135: 17
A136: =+A135+1 -> 66 | B136: 21SCSE1180146 | C136: 21131180389 | D136: AKASH KUMAR | E136: B.Tech CS (AIML) II Sem | F136: Sec-1 | G136: BBS01T1003 | H136: C109 | I136: 19
A137: 66 | B137: 21SCSE1180147 | C137: 21131180390 | D137: AYUSH SHANDILYA | E137: B.Tech CS (AIML) II Sem | F137: Sec-1 | G137: BBS01T1003 | H137: C109 | I137: 21
A138: 67 | B138: 21SCSE1180152 | C138: 21131180392 | D138: Meesha Khanna | E138: B.Tech CS (AIML) II Sem | F138: Sec-1 | G138: BBS01T1003 | H138: C109 | I138: 23
A139: 67 | B139: 21SCSE1180154 | C139: 21131180394 | D139: Sarthak tyagi | E139: B.Tech CS (AIML) II Sem | F139: Sec-1 | G139: BBS01T1003 | H139: C109 | I139: 25
A140: 68 | B140: 21SCSE1180243 | C140: 21131180397 | D140: Shivanshu Rai | E140: B.Tech CS (AIML) II Sem | F140: Sec-1 | G140: BBS01T1003 | H140: C109 | I140: 27
A141: 68 | B141: 21SCSE1180215 | C141: 21131180403 | D141: Ritwik jain | E141: B.Tech CS (AIML) II Sem | F141: Sec-1 | G141: BBS01T1003 | H141: C109 | I141: 29
A142: 69 | B142: 21SCSE1180185 | C142: 21131180421 | D142: Rituraj Gupta | E142: B.Tech CS (AIML) II Sem | F142: Sec-1 | G142: BBS01T1003 | H142: C109 | I142: 31
A143: 69 | B143: 21SCSE1180276 | C143: 21131180433 | D143: SACHIN KUMAR MAHTO | E143: B.Tech CS (AIML) II Sem | F143: Sec-1 | G143: BBS01T1003 | H143: C109 | I143: 33
A144: 70 | B144: 21SCSE1180212 | C144: 21131180437 | D144: Priyanshu Gupta | E144: B.Tech CS (AIML) II Sem | F144: Sec-1 | G144: BBS01T1003 | H144: C109 | I144: 35
A145: 70 | B145: 21SCSE1180223 | C145: 21131180438 | D145: Gaurav Singh | E145: B.Tech CS (AIML) II Sem | F145: Sec-1 | G145: BBS01T1003 | H145: C109 | I145: 37
A146: 71 | B146: 21SCSE1180233 | C146: 21131180442 | D146: Dheeraj Kumar Swain | E146: B.Tech CS (AIML) II Sem | F146: Sec-1 | G146: BBS01T1003 | H146: C109 | I146: 39
A147: 71 | B147: 21SCSE1180235 | C147: 21131180444 | D147: Shikhar Chaturvedi | E147: B.Tech CS (AIML) II Sem | F147: Sec-1 | G147: BBS01T1003 | H147: C109 | I147: 41
A148: 72 | B148: 21SCSE1180258 | C148: 21131180458 | D148: Ishank Mishra | E148: B.Tech CS (AIML) II Sem | F148: Sec-1 | G148: BBS01T1003 | H148: C109 | I148: 43
A149: 72 | B149: 21SCSE1180266 | C149: 21131180465 | D149: Paras Arora | E149: B.Tech CS (AIML) II Sem | F149: Sec-1 | G149: BBS01T1003 | H149: C109 | I149: 45
A150: 73 | B150: 21SCSE1050002 | C150: 21131050016 | D150: Faizan Parvez | E150: B.Tech CSE CCV II Sem | F150: Sec-1 | G150: BBS01T1003 | H150: C109 | I150: 47
A151: 73 | B151: 21SCSE1050004 | C151: 21131050018 | D151: Yuvraj singh chauhan | E151: B.Tech CSE CCV II Sem | F151: Sec-1 | G151: BBS01T1003 | H151: C109 | I151: 49
A152: 74 | B152: 21SCSE1050005 | C152: 21131050019 | D152: zaheer khan | E152: B.Tech CSE CCV II Sem | F152: Sec-1 | G152: BBS01T1003 | H152: C109 | I152: 51
A153: 74 | B153: 21SCSE1050006 | C153: 21131050020 | D153: Arjeet Singh | E153: B.Tech CSE CCV II Sem | F153: Sec-1 | G153: BBS01T1003 | H153: C109 | I153: 53
A154: 75 | B154: 21SCSE1050007 | C154: 21131050021 | D154: Samridhi Tyagi | E154: B.Tech CSE CCV II Sem | F154: Sec-1 | G154: BBS01T1003 | H154: C109 | I154: 55
A155: 75 | B155: 21SCSE1050008 | C155: 21131050022 | D155: Manoj Kumar | E155: B.Tech CSE CCV II Sem | F155: Sec-1 | G155: BBS01T1003 | H155: C109 | I155: 57
A156: 76 | B156: 21SCSE1050009 | C156: 21131050023 | D156: Aditya Narendra. | E156: B.Tech CSE CCV II Sem | F156: Sec-1 | G156: BBS01T1003 | H156: C109 | I156: 59
A157: 76 | B157: 21SCSE1050010 | C157: 21131050024 | D157: shashank singh | E157: B.Tech CSE CCV II Sem | F157: Sec-1 | G157: BBS01T1003 | H157: C110 | I157: 1
A158: 77 | B158: 21SCSE1050011 | C158: 21131050025 | D158: Bajrangi goyal | E158: B.Tech CSE CCV II Sem | F158: Sec-1 | G158: BBS01T1003 | H158: C110 | I158: =+I157+2 -> 3
A159: 77 | B159: 21SCSE1050014 | C159: 21131050026 | D159: Aditya Bhardwaj | E159: B.Tech CSE CCV II Sem | F159: Sec-1 | G159: BBS01T1003 | H159: C110 | I159: =+I158+2 -> 5
A160: 78 | B160: 21SCSE1050015 | C160: 21131050027 | D160: ASIF KALAM | E160: B.Tech CSE CCV II Sem | F160: Sec-1 | G160: BBS01T1003 | H160: C110 | I160: 7
A161: 78 | B161: 21SCSE1280001 | C161: 21131280040 | D161: Rohit Singh | E161: B.Tech AIDS II Sem | F161: Sec-1 | G161: BBS01T1003 | H161: C110 | I161: 9
A162: 79 | B162: 21SCSE1280002 | C162: 21131280041 | D162: Aditya kumar singh | E162: B.Tech AIDS II Sem | F162: Sec-1 | G162: BBS01T1003 | H162: C110 | I162: 11
A163: 79 | B163: 21SCSE1280003 | C163: 21131280042 | D163: Hritik Negi | E163: B.Tech AIDS II Sem | F163: Sec-1 | G163: BBS01T1003 | H163: C110 | I163: 13
A164: 80 | B164: 21SCSE1280004 | C164: 21131280043 | D164: Naitik gautam | E164: B.Tech AIDS II Sem | F164: Sec-1 | G164: BBS01T1003 | H164: C110 | I164: 15
A165: 80 | B165: 21SCSE1280006 | C165: 21131280044 | D165: Raja kumar | E165: B.Tech AIDS II Sem | F165: Sec-1 | G165: BBS01T1003 | H165: C110 | I165: 17
A166: 81 | B166: 21SCSE1280008 | C166: 21131280045 | D166: AYUSH BHARDWAJ | E166: B.Tech AIDS II Sem | F166: Sec-1 | G166: BBS01T1003 | H166: C110 | I166: 19
A167: 81 | B167: 21SCSE1280012 | C167: 21131280047 | D167: Anshika Agarwal | E167: B.Tech AIDS II Sem | F167: Sec-1 | G167: BBS01T1003 | H167: C110 | I167: 21
A168: 82 | B168: 21SCSE1280015 | C168: 21131280048 | D168: KARTIK ATTRI | E168: B.Tech AIDS II Sem | F168: Sec-1 | G168: BBS01T1003 | H168: C110 | I168: 23
A169: 82 | B169: 21SCSE1280017 | C169: 21131280049 | D169: Aman Singh | E169: B.Tech AIDS II Sem | F169: Sec-1 | G169: BBS01T1003 | H169: C110 | I169: 25
A170: 83 | B170: 21SCSE1280019 | C170: 21131280050 | D170: Devanshu Singh | E170: B.Tech AIDS II Sem | F170: Sec-1 | G170: BBS01T1003 | H170: C110 | I170: 27
A171: 83 | B171: 21SCSE1280020 | C171: 21131280051 | D171: SUYASH GUPTA | E171: B.Tech AIDS II Sem | F171: Sec-1 | G171: BBS01T1003 | H171: C110 | I171: 29
A172: 84 | B172: 21SCSE1280021 | C172: 21131280052 | D172: Ankur Singh | E172: B.Tech AIDS II Sem | F172: Sec-1 | G172: BBS01T1003 | H172: C110 | I172: 31
A173: 84 | B173: 21SCSE1280022 | C173: 21131280053 | D173: SUDHANSHU SINGH | E173: B.Tech AIDS II Sem | F173: Sec-1 | G173: BBS01T1003 | H173: C110 | I173: 33
A174: 85 | B174: 21SCSE1280023 | C174: 21131280054 | D174: Agrima Saxena | E174: B.Tech AIDS II Sem | F174: Sec-1 | G174: BBS01T1003 | H174: C110 | I174: 35
A175: 85 | B175: 21SCSE1280024 | C175: 21131280055 | D175: Shubham bhadana | E175: B.Tech AIDS II Sem | F175: Sec-1 | G175: BBS01T1003 | H175: C110 | I175: 37
A176: 86 | B176: 21SCSE1280025 | C176: 21131280056 | D176: Akansha Rajput | E176: B.Tech AIDS II Sem | F176: Sec-1 | G176: BBS01T1003 | H176: C110 | I176: 39
A177: 86 | B177: 21SCSE1280026 | C177: 21131280057 | D177: PRADYUMNA . | E177: B.Tech AIDS II Sem | F177: Sec-1 | G177: BBS01T1003 | H177: C110 | I177: 41
A178: 87 | B178: 21SCSE1280030 | C178: 21131280058 | D178: Akarshan Upadhyay | E178: B.Tech AIDS II Sem | F178: Sec-1 | G178: BBS01T1003 | H178: C110 | I178: 43
A179: 87 | B179: 21SCSE1280031 | C179: 21131280059 | D179: Nitish Verma | E179: B.Tech AIDS II Sem | F179: Sec-1 | G179: BBS01T1003 | H179: C110 | I179: 45
A180: 88 | B180: 21SCSE1280032 | C180: 21131280060 | D180: Awadhesh Pandey | E180: B.Tech AIDS II Sem | F180: Sec-1 | G180: BBS01T1003 | H180: C110 | I180: 47
A181: 88 | B181: 21SCSE1280033 | C181: 21131280061 | D181: Ankit kumar | E181: B.Tech AIDS II Sem | F181: Sec-1 | G181: BBS01T1003 | H181: C110 | I181: 49
A182: 89 | B182: 21SCSE1280034 | C182: 21131280062 | D182: Harsh vardhan sharma | E182: B.Tech AIDS II Sem | F182: Sec-1 | G182: BBS01T1003 | H182: C110 | I182: 51
A183: 89 | B183: 21SCSE1280035 | C183: 21131280063 | D183: VARUN SINGH | E183: B.Tech AIDS II Sem | F183: Sec-1 | G183: BBS01T1003 | H183: C110 | I183: 53
A184: 90 | B184: 21SCSE1280037 | C184: 21131280064 | D184: Siddhant Thakur | E184: B.Tech AIDS II Sem | F184: Sec-1 | G184: BBS01T1003 | H184: C110 | I184: 55
A185: 90 | B185: 21SCSE1280038 | C185: 21131280065 | D185: Shahim Ali | E185: B.Tech AIDS II Sem | F185: Sec-1 | G185: BBS01T1003 | H185: C110 | I185: 57
A186: 91 | B186: 21SCSE1280039 | C186: 21131280066 | D186: SURYANSH TIWARI | E186: B.Tech AIDS II Sem | F186: Sec-1 | G186: BBS01T1003 | H186: C110 | I186: 59
A187: 91 | B187: 21SCSE1280040 | C187: 21131280067 | D187: VEER PRATAP | E187: B.Tech AIDS II Sem | F187: Sec-1 | G187: BBS01T1003 | H187: C111 | I187: 1
A188: 92 | B188: 21SCSE1280042 | C188: 21131280068 | D188: Ananya Misra | E188: B.Tech AIDS II Sem | F188: Sec-1 | G188: BBS01T1003 | H188: C111 | I188: =+I187+2 -> 3
A189: 92 | B189: 21SCSE1280043 | C189: 21131280069 | D189: Ankur Jaiswal | E189: B.Tech AIDS II Sem | F189: Sec-1 | G189: BBS01T1003 | H189: C111 | I189: =+I188+2 -> 5
A190: 93 | B190: 21SCSE1280045 | C190: 21131280070 | D190: Vaibhav Kumar Srivastav | E190: B.Tech AIDS II Sem | F190: Sec-1 | G190: BBS01T1003 | H190: C111 | I190: 7
A191: 93 | B191: 21SCSE1280047 | C191: 21131280071 | D191: anagh vats | E191: B.Tech AIDS II Sem | F191: Sec-1 | G191: BBS01T1003 | H191: C111 | I191: 9
A192: 94 | B192: 21SCSE1280048 | C192: 21131280072 | D192: Priyanshu Talyan | E192: B.Tech AIDS II Sem | F192: Sec-1 | G192: BBS01T1003 | H192: C111 | I192: 11
A193: 94 | B193: 21SCSE1280051 | C193: 21131280073 | D193: Madhav Sharma | E193: B.Tech AIDS II Sem | F193: Sec-1 | G193: BBS01T1003 | H193: C111 | I193: 13
A194: 95 | B194: 21SCSE1280055 | C194: 21131280074 | D194: Harsh chauhan | E194: B.Tech AIDS II Sem | F194: Sec-1 | G194: BBS01T1003 | H194: C111 | I194: 15
A195: 95 | B195: 21SCSE1280056 | C195: 21131280075 | D195: Lakshay Sharma | E195: B.Tech AIDS II Sem | F195: Sec-1 | G195: BBS01T1003 | H195: C111 | I195: 17
A196: 96 | B196: 21SCSE1280052 | C196: 21131280076 | D196: Shiwendra kumar singh | E196: B.Tech AIDS II Sem | F196: Sec-1 | G196: BBS01T1003 | H196: C111 | I196: 19
A197: 96 | B197: 21SCSE1280054 | C197: 21131280077 | D197: kanishka sharma | E197: B.Tech AIDS II Sem | F197: Sec-1 | G197: BBS01T1003 | H197: C111 | I197: 21
A198: 97 | B198: 21SCSE1280058 | C198: 21131280078 | D198: yash raj | E198: B.Tech AIDS II Sem | F198: Sec-1 | G198: BBS01T1003 | H198: C111 | I198: 23
A199: 97 | B199: 21SCSE1410040 | C199: 21131410085 | D199: Vivek Dagar | E199: B.Tech CSE-AI II Sem | F199: Sec-1 | G199: BBS01T1003 | H199: C111 | I199: 25
A200: =+A199+1 -> 98 | B200: 21SCSE1410002 | C200: 21131410086 | D200: Anubhav Shukla | E200: B.Tech CSE-AI II Sem | F200: Sec-1 | G200: BBS01T1003 | H200: C111 | I200: 27
... 3043 more rows

Sheet 6N
A1: GALGOTIAS UNIVERSITY
A2: UTTAR PRADESH
A3: CAT II SECOND SEMESTER 2021-22, June 2022
A4: ATTENDANCE SHEET/SEATING PLAN
A5: Date of Exam: 06th June 2022 TIMINGS : 12:30 PM - 02.00 PM
A6: S. No. | B6: Admission No. | C6: Enrollment No. | D6: Name | E6: Program | F6: Sec | G6: Sub Code | H6: Room No. | I6: Seat No.
A7: 1 | B7: 21GPTC4030001 | C7: 21234030003 | D7: Vikash Kumar | E7: Dip (CE) II Sem | F7: Sec-1 | G7: PHYE1010 | H7: C003 | I7: 1
A8: =+A7+1 -> 2 | B8: 21GPTC4030003 | C8: 21234030004 | D8: SAHIL KUMAR | E8: Dip (CE) II Sem | F8: Sec-1 | G8: PHYE1010 | H8: C003 | I8: =+I7+2 -> 3
A9: 2 | B9: 21GPTC4030007 | C9: 21234030005 | D9: DARPAN SHUKLA | E9: Dip (CE) II Sem | F9: Sec-1 | G9: PHYE1010 | H9: C003 | I9: =+I8+2 -> 5
A10: 3 | B10: 21GPTC4030008 | C10: 21234030006 | D10: Saurav Kumar Vishal | E10: Dip (CE) II Sem | F10: Sec-1 | G10: PHYE1010 | H10: C003 | I10: 7
A11: 3 | B11: 21GPTC4030009 | C11: 21234030007 | D11: SANKALP SINGH RAJPUT | E11: Dip (CE) II Sem | F11: Sec-1 | G11: PHYE1010 | H11: C003 | I11: 9
A12: 4 | B12: 21GPTC4030010 | C12: 21234030008 | D12: Sanchit Raj | E12: Dip (CE) II Sem | F12: Sec-1 | G12: PHYE1010 | H12: C003 | I12: 11
A13: 4 | B13: 21GPTC4030011 | C13: 21234030009 | D13: Md Afsar Alam | E13: Dip (CE) II Sem | F13: Sec-1 | G13: PHYE1010 | H13: C003 | I13: 13
A14: 5 | B14: 21GPTC4030012 | C14: 21234030010 | D14: Shivam choubey | E14: Dip (CE) II Sem | F14: Sec-1 | G14: PHYE1010 | H14: C003 | I14: 15
A15: 5 | B15: 21GPTC4030015 | C15: 21234030011 | D15: Pankaj Rawat | E15: Dip (CE) II Sem | F15: Sec-1 | G15: PHYE1010 | H15: C003 | I15: 17
A16: 6 | B16: 21GPTC4030016 | C16: 21234030012 | D16: Bambam Kumar Jha | E16: Dip (CE) II Sem | F16: Sec-1 | G16: PHYE1010 | H16: C003 | I16: 19
A17: 6 | B17: 21GPTC4030018 | C17: 21234030013 | D17: ADITYA KUMAR | E17: Dip (CE) II Sem | F17: Sec-1 | G17: PHYE1010 | H17: C003 | I17: 21
A18: 7 | B18: 21GPTC4030020 | C18: 21234030014 | D18: DEEPAK Nagar | E18: Dip (CE) II Sem | F18: Sec-1 | G18: PHYE1010 | H18: C003 | I18: 23
A19: 7 | B19: 21GPTC4030021 | C19: 21234030015 | D19: abdul khalique khan | E19: Dip (CE) II Sem | F19: Sec-1 | G19: PHYE1010 | H19: C003 | I19: 25
A20: 8 | B20: 21GPTC4030022 | C20: 21234030016 | D20: shubhendu Sharma | E20: Dip (CE) II Sem | F20: Sec-1 | G20: PHYE1010 | H20: C003 | I20: 27
A21: 8 | B21: 21GPTC4030024 | C21: 21234030017 | D21: Sandeep kumar | E21: Dip (CE) II Sem | F21: Sec-1 | G21: PHYE1010 | H21: C003 | I21: 29
A22: 9 | B22: 21GPTC4030025 | C22: 21234030018 | D22: Aviraj yadav | E22: Dip (CE) II Sem | F22: Sec-1 | G22: PHYE1010 | H22: C003 | I22: 31
A23: 9 | B23: 21GPTC4030026 | C23: 21234030019 | D23: Anuj Singh | E23: Dip (CE) II Sem | F23: Sec-1 | G23: PHYE1010 | H23: C003 | I23: 33
A24: 10 | B24: 21GPTC4030027 | C24: 21234030020 | D24: Divyansh Gupta | E24: Dip (CE) II Sem | F24: Sec-1 | G24: PHYE1010 | H24: C003 | I24: 35
A25: 10 | B25: 21GPTC4030028 | C25: 21234030021 | D25: Hardick Talukdar | E25: Dip (CE) II Sem | F25: Sec-1 | G25: PHYE1010 | H25: C003 | I25: 37
A26: 11 | B26: 21GPTC4030029 | C26: 21234030022 | D26: Shuaib Ali | E26: Dip (CE) II Sem | F26: Sec-1 | G26: PHYE1010 | H26: C003 | I26: 39
A27: 11 | B27: 21GPTC4030030 | C27: 21234030023 | D27: DIPENDRA KUMAR YADAV | E27: Dip (CE) II Sem | F27: Sec-1 | G27: PHYE1010 | H27: C003 | I27: 41
A28: 12 | B28: 21GPTC4060111 | C28: 21234060026 | D28: KOMAL PRAGATI | E28: Dip (CSE) II Sem | F28: Sec-1 | G28: PHYE1010 | H28: C003 | I28: 43
A29: 12 | B29: 21GPTC4060018 | C29: 21234060028 | D29: Ankush . | E29: Dip (CSE) II Sem | F29: Sec-1 | G29: PHYE1010 | H29: C003 | I29: 45
A30: 13 | B30: 21GPTC4060021 | C30: 21234060030 | D30: Amritanshu anand | E30: Dip (CSE) II Sem | F30: Sec-1 | G30: PHYE1010 | H30: C003 | I30: 47
A31: 13 | B31: 21GPTC4060023 | C31: 21234060033 | D31: Chinmay Raj Singh | E31: Dip (CSE) II Sem | F31: Sec-1 | G31: PHYE1010 | H31: C003 | I31: 49
A32: 14 | B32: 21GPTC4060024 | C32: 21234060034 | D32: Aman singh | E32: Dip (CSE) II Sem | F32: Sec-1 | G32: PHYE1010 | H32: C003 | I32: 51
A33: 14 | B33: 21GPTC4060108 | C33: 21234060035 | D33: Kashish Mahajan | E33: Dip (CSE) II Sem | F33: Sec-1 | G33: PHYE1010 | H33: C003 | I33: 53
A34: 15 | B34: 21GPTC4060026 | C34: 21234060037 | D34: Himanshu Gautam | E34: Dip (CSE) II Sem | F34: Sec-1 | G34: PHYE1010 | H34: C003 | I34: 55
A35: 15 | B35: 21GPTC4060028 | C35: 21234060038 | D35: CHANDAN JHA | E35: Dip (CSE) II Sem | F35: Sec-1 | G35: PHYE1010 | H35: C003 | I35: 57
A36: 16 | B36: 21GPTC4060030 | C36: 21234060040 | D36: ADITYA CHAUHAN | E36: Dip (CSE) II Sem | F36: Sec-1 | G36: PHYE1010 | H36: C003 | I36: 59
A37: 16 | B37: 21GPTC4060086 | C37: 21234060043 | D37: Aryan raj | E37: Dip (CSE) II Sem | F37: Sec-1 | G37: PHYE1010 | H37: C008 | I37: 1
A38: 17 | B38: 21GPTC4060035 | C38: 21234060044 | D38: HASSAN ABUBAKARI SHARIPH | E38: Dip (CSE) II Sem | F38: Sec-1 | G38: PHYE1010 | H38: C008 | I38: =+I37+2 -> 3
A39: 17 | B39: 21GPTC4060036 | C39: 21234060045 | D39: HUSSEIN ABUBAKARI SHARIPH | E39: Dip (CSE) II Sem | F39: Sec-1 | G39: PHYE1010 | H39: C008 | I39: =+I38+2 -> 5
A40: 18 | B40: 21GPTC4060037 | C40: 21234060046 | D40: chaman Kumar | E40: Dip (CSE) II Sem | F40: Sec-1 | G40: PHYE1010 | H40: C008 | I40: 7
A41: 18 | B41: 21GPTC4060038 | C41: 21234060047 | D41: Aditya Kumar | E41: Dip (CSE) II Sem | F41: Sec-1 | G41: PHYE1010 | H41: C008 | I41: 9
A42: 19 | B42: 21GPTC4060041 | C42: 21234060048 | D42: MD KAIF BADER | E42: Dip (CSE) II Sem | F42: Sec-1 | G42: PHYE1010 | H42: C008 | I42: 11
A43: 19 | B43: 21GPTC4060042 | C43: 21234060049 | D43: Aditya | E43: Dip (CSE) II Sem | F43: Sec-1 | G43: PHYE1010 | H43: C008 | I43: 13
A44: 20 | B44: 21GPTC4060049 | C44: 21234060053 | D44: Deepak bhati | E44: Dip (CSE) II Sem | F44: Sec-1 | G44: PHYE1010 | H44: C008 | I44: 15
A45: 20 | B45: 21GPTC4060088 | C45: 21234060054 | D45: Dhruv Gautam | E45: Dip (CSE) II Sem | F45: Sec-1 | G45: PHYE1010 | H45: C008 | I45: 17
A46: 21 | B46: 21GPTC4060055 | C46: 21234060057 | D46: Ayush Yadav | E46: Dip (CSE) II Sem | F46: Sec-1 | G46: PHYE1010 | H46: C008 | I46: 19
A47: 21 | B47: 21GPTC4060056 | C47: 21234060058 | D47: Aryan babber | E47: Dip (CSE) II Sem | F47: Sec-1 | G47: PHYE1010 | H47: C008 | I47: 21
A48: 22 | B48: 21GPTC4060061 | C48: 21234060063 | D48: MR NADEEM SALIM RASHID | E48: Dip (CSE) II Sem | F48: Sec-1 | G48: PHYE1010 | H48: C008 | I48: 23
A49: 22 | B49: 21GPTC4060063 | C49: 21234060064 | D49: Anmol Prakash | E49: Dip (CSE) II Sem | F49: Sec-1 | G49: PHYE1010 | H49: C008 | I49: 25
A50: 23 | B50: 21GPTC4060064 | C50: 21234060065 | D50: MASOOM RAJA | E50: Dip (CSE) II Sem | F50: Sec-1 | G50: PHYE1010 | H50: C008 | I50: 27
A51: 23 | B51: 21GPTC4060065 | C51: 21234060066 | D51: Aaquib sana | E51: Dip (CSE) II Sem | F51: Sec-1 | G51: PHYE1010 | H51: C008 | I51: 29
A52: 24 | B52: 21GPTC4060068 | C52: 21234060068 | D52: Ayush singh | E52: Dip (CSE) II Sem | F52: Sec-1 | G52: PHYE1010 | H52: C008 | I52: 31
A53: 24 | B53: 21GPTC4060069 | D53: Kartikey shivhare | E53: Dip (CSE) II Sem | F53: Sec-1 | G53: PHYE1010 | H53: C008 | I53: 33
A54: 25 | B54: 21GPTC4060071 | C54: 21234060069 | D54: Afjal Ali | E54: Dip (CSE) II Sem | F54: Sec-1 | G54: PHYE1010 | H54: C008 | I54: 35
A55: 25 | B55: 21GPTC4060073 | C55: 21234060070 | D55: Aditya Singh Parihar | E55: Dip (CSE) II Sem | F55: Sec-1 | G55: PHYE1010 | H55: C008 | I55: 37
A56: 26 | B56: 21GPTC4060076 | C56: 21234060072 | D56: Devraj tiwari | E56: Dip (CSE) II Sem | F56: Sec-1 | G56: PHYE1010 | H56: C008 | I56: 39
A57: 26 | B57: 21GPTC4060077 | C57: 21234060073 | D57: MD IMRAN | E57: Dip (CSE) II Sem | F57: Sec-1 | G57: PHYE1010 | H57: C008 | I57: 41
A58: 27 | B58: 21GPTC4060081 | C58: 21234060077 | D58: kulshresth yadav | E58: Dip (CSE) II Sem | F58: Sec-1 | G58: PHYE1010 | H58: C008 | I58: 43
A59: 27 | B59: 21GPTC4060083 | C59: 21234060078 | D59: Abhishek Kumar | E59: Dip (CSE) II Sem | F59: Sec-1 | G59: PHYE1010 | H59: C008 | I59: 45
A60: 28 | B60: 21GPTC4060094 | C60: 21234060082 | D60: Abaan Gaffar | E60: Dip (CSE) II Sem | F60: Sec-1 | G60: PHYE1010 | H60: C008 | I60: 47
A61: 28 | B61: 21GPTC4060097 | C61: 21234060085 | D61: ABBAS RAZA ZAIDI | E61: Dip (CSE) II Sem | F61: Sec-1 | G61: PHYE1010 | H61: C008 | I61: 49
A62: 29 | B62: 21GPTC4060082 | C62: 21234060088 | D62: MR JOHN JACKSON DEUS | E62: Dip (CSE) II Sem | F62: Sec-1 | G62: PHYE1010 | H62: C008 | I62: 51
A63: 29 | B63: 21GPTC4060104 | C63: 21234060089 | D63: Abhishek Gautam | E63: Dip (CSE) II Sem | F63: Sec-1 | G63: PHYE1010 | H63: C008 | I63: 53
A64: 30 | B64: 21GPTC4060105 | C64: 21234060090 | D64: Aryaan Mushtaque | E64: Dip (CSE) II Sem | F64: Sec-1 | G64: PHYE1010 | H64: C008 | I64: 55
A65: 30 | B65: 21GPTC4060109 | C65: 21234060093 | D65: ANSH SHARMA | E65: Dip (CSE) II Sem | F65: Sec-1 | G65: PHYE1010 | H65: C008 | I65: 57
A66: 31 | B66: 21GPTC4060110 | C66: 21234060094 | D66: LABHANSH . | E66: Dip (CSE) II Sem | F66: Sec-1 | G66: PHYE1010 | H66: C008 | I66: 59
A67: 31 | B67: 21GPTC4060114 | C67: 21234060097 | D67: Mayank Agnihotri | E67: Dip (CSE) II Sem | F67: Sec-1 | G67: PHYE1010 | H67: C107 | I67: 1
A68: 32 | B68: 21GPTC4060115 | C68: 21234060098 | D68: COLLINE BONNY MINJA | E68: Dip (CSE) II Sem | F68: Sec-1 | G68: PHYE1010 | H68: C107 | I68: =+I67+2 -> 3
A69: 32 | B69: 21GPTC4060118 | C69: 21234060100 | D69: Lucky Singh | E69: Dip (CSE) II Sem | F69: Sec-1 | G69: PHYE1010 | H69: C107 | I69: =+I68+2 -> 5
A70: 33 | B70: 21GPTC4060075 | C70: 21234060071 | D70: FARHAN ALAM | E70: Dip (CSE) II Sem | F70: Sec-1 | G70: PHYE1010 | H70: C107 | I70: 7
A71: 33 | B71: 21GPTC4060001 | C71: 21234060020 | D71: RAJAN TOMAR | E71: Dip (CSE) II Sem | F71: Sec-2 | G71: PHYE1010 | H71: C107 | I71: 9
A72: =+A71+1 -> 34 | B72: 21GPTC4060002 | C72: 21234060021 | D72: VEDANT ACHARYA | E72: Dip (CSE) II Sem | F72: Sec-2 | G72: PHYE1010 | H72: C107 | I72: 11
A73: 34 | B73: 21GPTC4060085 | C73: 21234060022 | D73: MERAJ AHMAD | E73: Dip (CSE) II Sem | F73: Sec-2 | G73: PHYE1010 | H73: C107 | I73: 13
A74: 35 | B74: 21GPTC4060003 | C74: 21234060023 | D74: SHUBH RAJ KUMAR | E74: Dip (CSE) II Sem | F74: Sec-2 | G74: PHYE1010 | H74: C107 | I74: 15
A75: 35 | B75: 21GPTC4060009 | C75: 21234060024 | D75: Mustafa Khurram | E75: Dip (CSE) II Sem | F75: Sec-2 | G75: PHYE1010 | H75: C107 | I75: 17
A76: 36 | B76: 21GPTC4060010 | C76: 21234060025 | D76: Nitin Tripathi | E76: Dip (CSE) II Sem | F76: Sec-2 | G76: PHYE1010 | H76: C107 | I76: 19
A77: 36 | B77: 21GPTC4060016 | C77: 21234060027 | D77: Mohd Sarim Saifi | E77: Dip (CSE) II Sem | F77: Sec-2 | G77: PHYE1010 | H77: C107 | I77: 21
A78: 37 | B78: 21GPTC4060022 | C78: 21234060031 | D78: Sunny kumar | E78: Dip (CSE) II Sem | F78: Sec-2 | G78: PHYE1010 | H78: C107 | I78: 23
A79: 37 | B79: 21GPTC4060025 | C79: 21234060036 | D79: Saurabh Kumar | E79: Dip (CSE) II Sem | F79: Sec-2 | G79: PHYE1010 | H79: C107 | I79: 25
A80: 38 | B80: 21GPTC4060029 | C80: 21234060039 | D80: Prithavi chauhan | E80: Dip (CSE) II Sem | F80: Sec-2 | G80: PHYE1010 | H80: C107 | I80: 27
A81: 38 | B81: 21GPTC4060032 | C81: 21234060041 | D81: PANKAJ KUMAR | E81: Dip (CSE) II Sem | F81: Sec-2 | G81: PHYE1010 | H81: C107 | I81: 29
A82: 39 | B82: 21GPTC4060033 | C82: 21234060042 | D82: Satyam choubey | E82: Dip (CSE) II Sem | F82: Sec-2 | G82: PHYE1010 | H82: C107 | I82: 31
A83: 39 | B83: 21GPTC4060043 | C83: 21234060050 | D83: Sumit Raghav | E83: Dip (CSE) II Sem | F83: Sec-2 | G83: PHYE1010 | H83: C107 | I83: 33
A84: 40 | B84: 21GPTC4060045 | C84: 21234060051 | D84: Salman | E84: Dip (CSE) II Sem | F84: Sec-2 | G84: PHYE1010 | H84: C107 | I84: 35
A85: 40 | B85: 21GPTC4060051 | C85: 21234060055 | D85: Siddharth Singh | E85: Dip (CSE) II Sem | F85: Sec-2 | G85: PHYE1010 | H85: C107 | I85: 37
A86: 41 | B86: 21GPTC4060054 | C86: 21234060056 | D86: MD shahabuddin | E86: Dip (CSE) II Sem | F86: Sec-2 | G86: PHYE1010 | H86: C107 | I86: 39
A87: 41 | B87: 21GPTC4060089 | C87: 21234060059 | D87: Vikash Pandey | E87: Dip (CSE) II Sem | F87: Sec-2 | G87: PHYE1010 | H87: C107 | I87: 41
A88: 42 | B88: 21GPTC4060058 | C88: 21234060060 | D88: Rohit . | E88: Dip (CSE) II Sem | F88: Sec-2 | G88: PHYE1010 | H88: C107 | I88: 43
A89: 42 | B89: 21GPTC4060102 | C89: 21234060061 | D89: VISHAL BHATI | E89: Dip (CSE) II Sem | F89: Sec-2 | G89: PHYE1010 | H89: C107 | I89: 45
A90: 43 | B90: 21GPTC4060060 | C90: 21234060062 | D90: Shivam Kumar Rai | E90: Dip (CSE) II Sem | F90: Sec-2 | G90: PHYE1010 | H90: C107 | I90: 47
A91: 43 | B91: 21GPTC4060066 | C91: 21234060067 | D91: mohd kaif | E91: Dip (CSE) II Sem | F91: Sec-2 | G91: PHYE1010 | H91: C107 | I91: 49
A92: 44 | B92: 21GPTC4060078 | C92: 21234060074 | D92: Rohit Kumar | E92: Dip (CSE) II Sem | F92: Sec-2 | G92: PHYE1010 | H92: C107 | I92: 51
A93: 44 | B93: 21GPTC4060079 | C93: 21234060075 | D93: Raman Kumar | E93: Dip (CSE) II Sem | F93: Sec-2 | G93: PHYE1010 | H93: C107 | I93: 53
A94: 45 | B94: 21GPTC4060080 | C94: 21234060076 | D94: Talha Ahmad Khan | E94: Dip (CSE) II Sem | F94: Sec-2 | G94: PHYE1010 | H94: C107 | I94: 55
A95: 45 | B95: 21GPTC4060084 | C95: 21234060079 | D95: Rachit Kumar | E95: Dip (CSE) II Sem | F95: Sec-2 | G95: PHYE1010 | H95: C107 | I95: 57
A96: 46 | B96: 21GPTC4060091 | C96: 21234060080 | D96: PARIDH GAUTAM | E96: Dip (CSE) II Sem | F96: Sec-2 | G96: PHYE1010 | H96: C107 | I96: 59
A97: 46 | B97: 21GPTC4060093 | C97: 21234060081 | D97: Praveen Singh | E97: Dip (CSE) II Sem | F97: Sec-2 | G97: PHYE1010 | H97: C108 | I97: 1
A98: 47 | B98: 21GPTC4060095 | C98: 21234060083 | D98: SHUBHAM RAJ | E98: Dip (CSE) II Sem | F98: Sec-2 | G98: PHYE1010 | H98: C108 | I98: =+I97+2 -> 3
A99: 47 | B99: 21GPTC4060096 | C99: 21234060084 | D99: Vaibhav bhatt | E99: Dip (CSE) II Sem | F99: Sec-2 | G99: PHYE1010 | H99: C108 | I99: =+I98+2 -> 5
A100: 48 | B100: 21GPTC4060098 | C100: 21234060086 | D100: Ratan Kumar | E100: Dip (CSE) II Sem | F100: Sec-2 | G100: PHYE1010 | H100: C108 | I100: 7
A101: 48 | B101: 21GPTC4060099 | C101: 21234060087 | D101: Vicky Kumar | E101: Dip (CSE) II Sem | F101: Sec-2 | G101: PHYE1010 | H101: C108 | I101: 9
A102: 49 | B102: 21GPTC4060106 | C102: 21234060091 | D102: VASHU TYAGI | E102: Dip (CSE) II Sem | F102: Sec-2 | G102: PHYE1010 | H102: C108 | I102: 11
A103: 49 | B103: 21GPTC4060107 | C103: 21234060092 | D103: Wasim haidar | E103: Dip (CSE) II Sem | F103: Sec-2 | G103: PHYE1010 | H103: C108 | I103: 13
A104: 50 | B104: 21GPTC4060112 | C104: 21234060095 | D104: Yash Aditya | E104: Dip (CSE) II Sem | F104: Sec-2 | G104: PHYE1010 | H104: C108 | I104: 15
A105: 50 | B105: 21GPTC4060113 | C105: 21234060096 | D105: Navyansh Kumar | E105: Dip (CSE) II Sem | F105: Sec-2 | G105: PHYE1010 | H105: C108 | I105: 17
A106: 51 | B106: 21GPTC4060116 | C106: 21234060099 | D106: VIPUL Sharma | E106: Dip (CSE) II Sem | F106: Sec-2 | G106: PHYE1010 | H106: C108 | I106: 19
A107: 51 | B107: 21GPTC4060119 | C107: 21234060101 | D107: pooja gupta | E107: Dip (CSE) II Sem | F107: Sec-2 | G107: PHYE1010 | H107: C108 | I107: 21
A108: 52 | B108: 21GPTC4060048 | C108: 21234060052 | D108: Shivam Kumar | E108: Dip (CSE) II Sem | F108: Sec-2 | G108: PHYE1010 | H108: C108 | I108: 23
A109: 52 | B109: 21GPTC4080001 | C109: 21234080010 | D109: Jitin Sharma | E109: Dip (EE) II Sem | F109: Sec-1 | G109: PHYE1010 | H109: C108 | I109: 25
A110: 53 | B110: 21GPTC4080004 | C110: 21234080011 | D110: HEMANT KUMAR PANDEY | E110: Dip (EE) II Sem | F110: Sec-1 | G110: PHYE1010 | H110: C108 | I110: 27
A111: 53 | B111: 21GPTC4080009 | C111: 21234080012 | D111: harsh tomar | E111: Dip (EE) II Sem | F111: Sec-1 | G111: PHYE1010 | H111: C108 | I111: 29
A112: 54 | B112: 21GPTC4080011 | C112: 21234080013 | D112: MD IKLAK | E112: Dip (EE) II Sem | F112: Sec-1 | G112: PHYE1010 | H112: C108 | I112: 31
A113: 54 | B113: 21GPTC4080012 | C113: 21234080014 | D113: SAHIL KHAN | E113: Dip (EE) II Sem | F113: Sec-1 | G113: PHYE1010 | H113: C108 | I113: 33
A114: 55 | B114: 21GPTC4080014 | C114: 21234080015 | D114: Vishal soni | E114: Dip (EE) II Sem | F114: Sec-1 | G114: PHYE1010 | H114: C108 | I114: 35
A115: 55 | B115: 21GPTC4080013 | C115: 21234080016 | D115: Nitish Kumar | E115: Dip (EE) II Sem | F115: Sec-1 | G115: PHYE1010 | H115: C108 | I115: 37
A116: 56 | B116: 21GPTC4010001 | C116: 21234010010 | D116: Ayush mishra | E116: Dip (ME) II Sem | F116: Sec-1 | G116: PHYE1010 | H116: C108 | I116: 39
A117: 56 | B117: 21GPTC4010002 | C117: 21234010011 | D117: digvijay singh | E117: Dip (ME) II Sem | F117: Sec-1 | G117: PHYE1010 | H117: C108 | I117: 41
A118: 57 | B118: 21GPTC4010003 | C118: 21234010012 | D118: Shubham Barhela | E118: Dip (ME) II Sem | F118: Sec-1 | G118: PHYE1010 | H118: C108 | I118: 43
A119: 57 | B119: 21GPTC4010007 | C119: 21234010013 | D119: Madan | E119: Dip (ME) II Sem | F119: Sec-1 | G119: PHYE1010 | H119: C108 | I119: 45
A120: 58 | B120: 21GPTC4010027 | C120: 21234010014 | D120: Samuel Lalhlupuia | E120: Dip (ME) II Sem | F120: Sec-1 | G120: PHYE1010 | H120: C108 | I120: 47
A121: 58 | B121: 21GPTC4010009 | C121: 21234010015 | D121: Mukul Satish Chandra Mishra | E121: Dip (ME) II Sem | F121: Sec-1 | G121: PHYE1010 | H121: C108 | I121: 49
A122: 59 | B122: 21GPTC4010010 | C122: 21234010016 | D122: MOHD ARMAN KHAN | E122: Dip (ME) II Sem | F122: Sec-1 | G122: PHYE1010 | H122: C108 | I122: 51
A123: 59 | B123: 21GPTC4010011 | C123: 21234010017 | D123: shivam tiwari | E123: Dip (ME) II Sem | F123: Sec-1 | G123: PHYE1010 | H123: C108 | I123: 53
A124: 60 | B124: 21GPTC4010022 | C124: 21234010018 | D124: Amitabh Nag | E124: Dip (ME) II Sem | F124: Sec-1 | G124: PHYE1010 | H124: C108 | I124: 55
A125: 60 | B125: 21GPTC4010012 | C125: 21234010019 | D125: Akshay Sharma | E125: Dip (ME) II Sem | F125: Sec-1 | G125: PHYE1010 | H125: C108 | I125: 57
A126: 61 | B126: 21GPTC4010015 | C126: 21234010020 | D126: Aniran Sami | E126: Dip (ME) II Sem | F126: Sec-1 | G126: PHYE1010 | H126: C108 | I126: 59
A127: 61 | B127: 21GPTC4010016 | C127: 21234010021 | D127: HRITIK CHAUHAN | E127: Dip (ME) II Sem | F127: Sec-1 | G127: PHYE1010 | H127: C109 | I127: 1
A128: 62 | B128: 21GPTC4010017 | C128: 21234010022 | D128: sachin . | E128: Dip (ME) II Sem | F128: Sec-1 | G128: PHYE1010 | H128: C109 | I128: =+I127+2 -> 3
A129: 62 | B129: 21GPTC4010020 | C129: 21234010023 | D129: Saif Khan | E129: Dip (ME) II Sem | F129: Sec-1 | G129: PHYE1010 | H129: C109 | I129: =+I128+2 -> 5
A130: 63 | B130: 21GPTC4010021 | C130: 21234010024 | D130: yash Chaudhary | E130: Dip (ME) II Sem | F130: Sec-1 | G130: PHYE1010 | H130: C109 | I130: 7
A131: 63 | B131: 21GPTC4010028 | C131: 21234010025 | D131: SHUBHAN ALI | E131: Dip (ME) II Sem | F131: Sec-1 | G131: PHYE1010 | H131: C109 | I131: 9
A132: 64 | B132: 21GPTC4010023 | C132: 21234010026 | D132: Faizan Alam | E132: Dip (ME) II Sem | F132: Sec-1 | G132: PHYE1010 | H132: C109 | I132: 11
A133: 64 | B133: 21GPTC4010024 | C133: 21234010027 | D133: Bhanu Pratap | E133: Dip (ME) II Sem | F133: Sec-1 | G133: PHYE1010 | H133: C109 | I133: 13
A134: 65 | B134: 21GPTC4010029 | C134: 21234010028 | D134: MAYANK RAWAT | E134: Dip (ME) II Sem | F134: Sec-1 | G134: PHYE1010 | H134: C109 | I134: 15
A135: 65 | B135: 21GPTC4010030 | C135: 21234010029 | D135: mohd kausain khan | E135: Dip (ME) II Sem | F135: Sec-1 | G135: PHYE1010 | H135: C109 | I135: 17
A136: =+A135+1 -> 66 | B136: 21GPTC4010031 | C136: 21234010030 | D136: priyanshu Pranav jha | E136: Dip (ME) II Sem | F136: Sec-1 | G136: PHYE1010 | H136: C109 | I136: 19
A137: 66 | B137: 21GPTC4010032 | C137: 21234010031 | D137: Divyansh Panchal | E137: Dip (ME) II Sem | F137: Sec-1 | G137: PHYE1010 | H137: C109 | I137: 21
A138: 67 | B138: 21GPTC4010033 | C138: 21234010032 | D138: Pushpendra Kumar | E138: Dip (ME) II Sem | F138: Sec-1 | G138: PHYE1010 | H138: C109 | I138: 23
A139: 67 | B139: 21GPTC4010035 | C139: 21234010034 | D139: Shivam Kaushik | E139: Dip (ME) II Sem | F139: Sec-1 | G139: PHYE1010 | H139: C109 | I139: 25
A140: 68 | B140: 21GPTC4010036 | C140: 21234010035 | D140: afsar Kamal | E140: Dip (ME) II Sem | F140: Sec-1 | G140: PHYE1010 | H140: C109 | I140: 27
A141: 68 | B141: 21SLAM1020001 | C141: 21041020221 | D141: MADHAVAN S | E141: BBA (AM) II Sem | F141: Sec-1 | G141: F010201TB | H141: C109 | I141: 29
A142: 69 | B142: 21SLAM1020002 | C142: 21041020222 | D142: MD AQDAS SARWAR | E142: BBA (AM) II Sem | F142: Sec-1 | G142: F010201TB | H142: C109 | I142: 31
A143: 69 | B143: 21SLAM1020053 | C143: 21041020223 | D143: Deeksha Chauhan | E143: BBA (AM) II Sem | F143: Sec-1 | G143: F010201TB | H143: C109 | I143: 33
A144: 70 | B144: 21SLAM1020004 | C144: 21041020224 | D144: Siddharth s kumar | E144: BBA (AM) II Sem | F144: Sec-1 | G144: F010201TB | H144: C109 | I144: 35
A145: 70 | B145: 21SLAM1020005 | C145: 21041020225 | D145: Shubham Kumar | E145: BBA (AM) II Sem | F145: Sec-1 | G145: F010201TB | H145: C109 | I145: 37
A146: 71 | B146: 21SLAM1020008 | C146: 21041020226 | D146: Anshual sunu | E146: BBA (AM) II Sem | F146: Sec-1 | G146: F010201TB | H146: C109 | I146: 39
A147: 71 | B147: 21SLAM1020009 | C147: 21041020227 | D147: Aditya Sharma | E147: BBA (AM) II Sem | F147: Sec-1 | G147: F010201TB | H147: C109 | I147: 41
A148: 72 | B148: 21SLAM1020010 | C148: 21041020228 | D148: Shristi Sahu | E148: BBA (AM) II Sem | F148: Sec-1 | G148: F010201TB | H148: C109 | I148: 43
A149: 72 | B149: 21SLAM1020011 | C149: 21041020229 | D149: Vinit | E149: BBA (AM) II Sem | F149: Sec-1 | G149: F010201TB | H149: C109 | I149: 45
A150: 73 | B150: 21SLAM1020012 | C150: 21041020230 | D150: Bishwash Mishra | E150: BBA (AM) II Sem | F150: Sec-1 | G150: F010201TB | H150: C109 | I150: 47
A151: 73 | B151: 21SLAM1020013 | C151: 21041020231 | D151: mukesh raj | E151: BBA (AM) II Sem | F151: Sec-1 | G151: F010201TB | H151: C109 | I151: 49
A152: 74 | B152: 21SLAM1020014 | C152: 21041020232 | D152: PRASHANT kumar | E152: BBA (AM) II Sem | F152: Sec-1 | G152: F010201TB | H152: C109 | I152: 51
A153: 74 | B153: 21SLAM1020015 | C153: 21041020233 | D153: Ansh Kumar singh | E153: BBA (AM) II Sem | F153: Sec-1 | G153: F010201TB | H153: C109 | I153: 53
A154: 75 | B154: 21SLAM1020016 | C154: 21041020234 | D154: Lilender Shivani | E154: BBA (AM) II Sem | F154: Sec-1 | G154: F010201TB | H154: C109 | I154: 55
A155: 75 | B155: 21SLAM1020059 | C155: 21041020235 | D155: Ashutosh Rai | E155: BBA (AM) II Sem | F155: Sec-1 | G155: F010201TB | H155: C109 | I155: 57
A156: 76 | B156: 21SLAM1020017 | C156: 21041020236 | D156: Abhishek patwa | E156: BBA (AM) II Sem | F156: Sec-1 | G156: F010201TB | H156: C109 | I156: 59
A157: 76 | B157: 21SLAM1020018 | C157: 21041020237 | D157: suyash malhotra | E157: BBA (AM) II Sem | F157: Sec-1 | G157: F010201TB | H157: C110 | I157: 1
A158: 77 | B158: 21SLAM1020019 | C158: 21041020238 | D158: Sandip Jana | E158: BBA (AM) II Sem | F158: Sec-1 | G158: F010201TB | H158: C110 | I158: =+I157+2 -> 3
A159: 77 | B159: 21SLAM1020056 | C159: 21041020239 | D159: SALONI KUMARI GUPTA | E159: BBA (AM) II Sem | F159: Sec-1 | G159: F010201TB | H159: C110 | I159: =+I158+2 -> 5
A160: 78 | B160: 21SLAM1020020 | C160: 21041020240 | D160: ANU.P.BABU PALAMUTILL BABU | E160: BBA (AM) II Sem | F160: Sec-1 | G160: F010201TB | H160: C110 | I160: 7
A161: 78 | B161: 21SLAM1020021 | C161: 21041020241 | D161: abhisek kumar shah | E161: BBA (AM) II Sem | F161: Sec-1 | G161: F010201TB | H161: C110 | I161: 9
A162: 79 | B162: 21SLAM1020066 | C162: 21041020242 | D162: SALONI VISHNOI | E162: BBA (AM) II Sem | F162: Sec-1 | G162: F010201TB | H162: C110 | I162: 11
A163: 79 | B163: 21SLAM1020023 | C163: 21041020243 | D163: Ananya Srivastava | E163: BBA (AM) II Sem | F163: Sec-1 | G163: F010201TB | H163: C110 | I163: 13
A164: 80 | B164: 21SLAM1020024 | C164: 21041020244 | D164: Hridayansh Gupta | E164: BBA (AM) II Sem | F164: Sec-1 | G164: F010201TB | H164: C110 | I164: 15
A165: 80 | B165: 21SLAM1020025 | C165: 21041020245 | D165: divya mandaar | E165: BBA (AM) II Sem | F165: Sec-1 | G165: F010201TB | H165: C110 | I165: 17
A166: 81 | B166: 21SLAM1020026 | C166: 21041020246 | D166: priyank kumar | E166: BBA (AM) II Sem | F166: Sec-1 | G166: F010201TB | H166: C110 | I166: 19
A167: 81 | B167: 21SLAM1020027 | C167: 21041020247 | D167: RITIKA SINGH | E167: BBA (AM) II Sem | F167: Sec-1 | G167: F010201TB | H167: C110 | I167: 21
A168: 82 | B168: 21SLAM1020055 | C168: 21041020248 | D168: Kushagra Sharma | E168: BBA (AM) II Sem | F168: Sec-1 | G168: F010201TB | H168: C110 | I168: 23
A169: 82 | B169: 21SLAM1020030 | C169: 21041020249 | D169: Ishika bhatnagar | E169: BBA (AM) II Sem | F169: Sec-1 | G169: F010201TB | H169: C110 | I169: 25
A170: 83 | B170: 21SLAM1020032 | C170: 21041020250 | D170: SAUMYA CHOUDHARY | E170: BBA (AM) II Sem | F170: Sec-1 | G170: F010201TB | H170: C110 | I170: 27
A171: 83 | B171: 21SLAM1020007 | C171: 21041020251 | D171: Shaan Suyash | E171: BBA (AM) II Sem | F171: Sec-1 | G171: F010201TB | H171: C110 | I171: 29
A172: 84 | B172: 21SLAM1020034 | C172: 21041020253 | D172: Aatif raza | E172: BBA (AM) II Sem | F172: Sec-1 | G172: F010201TB | H172: C110 | I172: 31
A173: 84 | B173: 21SLAM1020035 | C173: 21041020254 | D173: aaqib raza | E173: BBA (AM) II Sem | F173: Sec-1 | G173: F010201TB | H173: C110 | I173: 33
A174: 85 | B174: 21SLAM1020036 | C174: NA | D174: Akash kumar | E174: BBA (AM) II Sem | F174: Sec-1 | G174: F010201TB | H174: C110 | I174: 35
A175: 85 | B175: 21SLAM1020037 | C175: 21041020255 | D175: Pranav Ranjan | E175: BBA (AM) II Sem | F175: Sec-1 | G175: F010201TB | H175: C110 | I175: 37
A176: 86 | B176: 21SLAM1020038 | C176: 21041020256 | D176: Prahlad kumar | E176: BBA (AM) II Sem | F176: Sec-1 | G176: F010201TB | H176: C110 | I176: 39
A177: 86 | B177: 21SLAM1020039 | C177: 21041020257 | D177: ARIFA KHAN | E177: BBA (AM) II Sem | F177: Sec-1 | G177: F010201TB | H177: C110 | I177: 41
A178: 87 | B178: 21SLAM1020040 | C178: 21041020258 | D178: Kusum Panth | E178: BBA (AM) II Sem | F178: Sec-1 | G178: F010201TB | H178: C110 | I178: 43
A179: 87 | B179: 21SLAM1020041 | C179: NA | D179: Yash gupta | E179: BBA (AM) II Sem | F179: Sec-1 | G179: F010201TB | H179: C110 | I179: 45
A180: 88 | B180: 21SLAM1020042 | C180: 21041020259 | D180: Iswarya .s | E180: BBA (AM) II Sem | F180: Sec-1 | G180: F010201TB | H180: C110 | I180: 47
A181: 88 | B181: 21SLAM1020006 | C181: 21041020260 | D181: Suraj Raj | E181: BBA (AM) II Sem | F181: Sec-1 | G181: F010201TB | H181: C110 | I181: 49
A182: 89 | B182: 21SLAM1020044 | C182: 21041020261 | D182: Ansh Deep Singh | E182: BBA (AM) II Sem | F182: Sec-1 | G182: F010201TB | H182: C110 | I182: 51
A183: 89 | B183: 21SLAM1020058 | C183: 21041020262 | D183: Alisha Ashraf | E183: BBA (AM) II Sem | F183: Sec-1 | G183: F010201TB | H183: C110 | I183: 53
A184: 90 | B184: 21SLAM1020046 | C184: 21041020263 | D184: Angelina Dsouza | E184: BBA (AM) II Sem | F184: Sec-1 | G184: F010201TB | H184: C110 | I184: 55
A185: 90 | B185: 21SLAM1020047 | C185: 21041020264 | D185: Aarti . . | E185: BBA (AM) II Sem | F185: Sec-1 | G185: F010201TB | H185: C110 | I185: 57
A186: 91 | B186: 21SLAM1020048 | C186: 21041020265 | D186: ADITYA KUMAR MALL | E186: BBA (AM) II Sem | F186: Sec-1 | G186: F010201TB | H186: C110 | I186: 59
A187: 91 | B187: 21SLAM1020049 | C187: 21041020266 | D187: Siddhant kumar | E187: BBA (AM) II Sem | F187: Sec-1 | G187: F010201TB | H187: C111 | I187: 1
A188: 92 | B188: 21SLAM1020050 | C188: 21041020267 | D188: Shivam Kapoor | E188: BBA (AM) II Sem | F188: Sec-1 | G188: F010201TB | H188: C111 | I188: =+I187+2 -> 3
A189: 92 | B189: 21SLAM1020051 | C189: 21041020268 | D189: DIPANSHU JAISWAL | E189: BBA (AM) II Sem | F189: Sec-1 | G189: F010201TB | H189: C111 | I189: =+I188+2 -> 5
A190: 93 | B190: 21SLAM1020052 | C190: 21041020269 | D190: Prabhash Kumar Jha | E190: BBA (AM) II Sem | F190: Sec-1 | G190: F010201TB | H190: C111 | I190: 7
A191: 93 | B191: 21SLAM1020057 | C191: 21041020270 | D191: Sahil Satyam | E191: BBA (AM) II Sem | F191: Sec-1 | G191: F010201TB | H191: C111 | I191: 9
A192: 94 | B192: 21SLAM1020063 | C192: 21041020271 | D192: Chinmay sanal pillai | E192: BBA (AM) II Sem | F192: Sec-1 | G192: F010201TB | H192: C111 | I192: 11
A193: 94 | B193: 21SLAM1020061 | C193: 21041020272 | D193: Rishav Verma | E193: BBA (AM) II Sem | F193: Sec-1 | G193: F010201TB | H193: C111 | I193: 13
A194: 95 | B194: 21SLAM1020062 | C194: 21041020273 | D194: Sanskriti verma | E194: BBA (AM) II Sem | F194: Sec-1 | G194: F010201TB | H194: C111 | I194: 15
A195: 95 | B195: 21SLAM1020064 | C195: 21041020274 | D195: Aryan Singh | E195: BBA (AM) II Sem | F195: Sec-1 | G195: F010201TB | H195: C111 | I195: 17
A196: 96 | B196: 21SLAM1020065 | C196: 21041020275 | D196: Khushi sharma | E196: BBA (AM) II Sem | F196: Sec-1 | G196: F010201TB | H196: C111 | I196: 19
A197: 96 | B197: 21SLAM1020067 | C197: 21041020276 | D197: Laksh Choudhary | E197: BBA (AM) II Sem | F197: Sec-1 | G197: F010201TB | H197: C111 | I197: 21
A198: 97 | B198: 21SLAM1020069 | C198: 21041020277 | D198: pawan kumar mishra | E198: BBA (AM) II Sem | F198: Sec-1 | G198: F010201TB | H198: C111 | I198: 23
A199: 97 | B199: 21SLAM1020071 | C199: 21041020278 | D199: Anjali Gari | E199: BBA (AM) II Sem | F199: Sec-1 | G199: F010201TB | H199: C111 | I199: 25
A200: =+A199+1 -> 98 | B200: 21SLAM1020072 | C200: 21041020279 | D200: Sohaib Khan | E200: BBA (AM) II Sem | F200: Sec-1 | G200: F010201TB | H200: C111 | I200: 27
... 2308 more rows

Sheet 6E
A1: GALGOTIAS UNIVERSITY
A2: UTTAR PRADESH
A3: CAT II SECOND SEMESTER 2021-22, June 2022
A4: ATTENDANCE SHEET/SEATING PLAN
A5: Date of Exam: 06th June 2022 TIMINGS : 03:00 PM - 04.30 PM
A6: S. No. | B6: Admission No. | C6: Enrollment No. | D6: Name | E6: Program | F6: Sec | G6: Sub Code | H6: Room No. | I6: Seat No.
A7: 1 | B7: 21SCSE1011407 | C7: 21131011621 | D7: Abdul Hussamad Aarfin | E7: B.Tech CSE II Sem | F7: Sec-1 | G7: BEE01T1004 | H7: C003 | I7: 1
A8: =+A7+1 -> 2 | B8: 21SCSE1010068 | C8: 21131011658 | D8: Raj Nandani | E8: B.Tech CSE II Sem | F8: Sec-1 | G8: BEE01T1004 | H8: C003 | I8: =+I7+2 -> 3
A9: 2 | B9: 21SCSE1010134 | C9: 21131011708 | D9: Manas Pandey | E9: B.Tech CSE II Sem | F9: Sec-1 | G9: BEE01T1004 | H9: C003 | I9: =+I8+2 -> 5
A10: 3 | B10: 21SCSE1010137 | C10: 21131011711 | D10: priyanshu gupta | E10: B.Tech CSE II Sem | F10: Sec-1 | G10: BEE01T1004 | H10: C003 | I10: 7
A11: 3 | B11: 21SCSE1010218 | C11: 21131011774 | D11: Neelkant mani Upadhyay | E11: B.Tech CSE II Sem | F11: Sec-1 | G11: BEE01T1004 | H11: C003 | I11: 9
A12: 4 | B12: 21SCSE1010232 | C12: 21131011786 | D12: Anshu maurya | E12: B.Tech CSE II Sem | F12: Sec-1 | G12: BEE01T1004 | H12: C003 | I12: 11
A13: 4 | B13: 21SCSE1010249 | C13: 21131011799 | D13: Rachit Bora | E13: B.Tech CSE II Sem | F13: Sec-1 | G13: BEE01T1004 | H13: C003 | I13: 13
A14: 5 | B14: 21SCSE1010279 | C14: 21131011827 | D14: Rishabh Dixit | E14: B.Tech CSE II Sem | F14: Sec-1 | G14: BEE01T1004 | H14: C003 | I14: 15
A15: 5 | B15: 21SCSE1010306 | C15: 21131011851 | D15: Kajal Sharma | E15: B.Tech CSE II Sem | F15: Sec-1 | G15: BEE01T1004 | H15: C003 | I15: 17
A16: 6 | B16: 21SCSE1011276 | C16: 21131011853 | D16: VIVEK KUMAR | E16: B.Tech CSE II Sem | F16: Sec-1 | G16: BEE01T1004 | H16: C003 | I16: 19
A17: 6 | B17: 21SCSE1010321 | C17: 21131011864 | D17: Mayur Pratap Singh | E17: B.Tech CSE II Sem | F17: Sec-1 | G17: BEE01T1004 | H17: C003 | I17: 21
A18: 7 | B18: 21SCSE1010333 | C18: 21131011871 | D18: AMBESH YADAV | E18: B.Tech CSE II Sem | F18: Sec-1 | G18: BEE01T1004 | H18: C003 | I18: 23
A19: 7 | B19: 21SCSE1010355 | C19: 21131011888 | D19: Devesh Kumar | E19: B.Tech CSE II Sem | F19: Sec-1 | G19: BEE01T1004 | H19: C003 | I19: 25
A20: 8 | B20: 21SCSE1010365 | C20: 21131011898 | D20: vansh nagar | E20: B.Tech CSE II Sem | F20: Sec-1 | G20: BEE01T1004 | H20: C003 | I20: 27
A21: 8 | B21: 21SCSE1010390 | C21: 21131011920 | D21: Yash Rajput | E21: B.Tech CSE II Sem | F21: Sec-1 | G21: BEE01T1004 | H21: C003 | I21: 29
A22: 9 | B22: 21SCSE1010416 | C22: 21131011939 | D22: Manvi Chaudhary | E22: B.Tech CSE II Sem | F22: Sec-1 | G22: BEE01T1004 | H22: C003 | I22: 31
A23: 9 | B23: 21SCSE1010443 | C23: 21131011961 | D23: PARMITA MAURYA | E23: B.Tech CSE II Sem | F23: Sec-1 | G23: BEE01T1004 | H23: C003 | I23: 33
A24: 10 | B24: 21SCSE1010452 | C24: 21131011969 | D24: Mohammad Irshad Ali | E24: B.Tech CSE II Sem | F24: Sec-1 | G24: BEE01T1004 | H24: C003 | I24: 35
A25: 10 | B25: 21SCSE1010472 | C25: 21131011987 | D25: Mayank Maheshwari | E25: B.Tech CSE II Sem | F25: Sec-1 | G25: BEE01T1004 | H25: C003 | I25: 37
A26: 11 | B26: 21SCSE1010500 | C26: 21131012013 | D26: Saksham Kaushik | E26: B.Tech CSE II Sem | F26: Sec-1 | G26: BEE01T1004 | H26: C003 | I26: 39
A27: 11 | B27: 21SCSE1010529 | C27: 21131012036 | D27: suraj yadav | E27: B.Tech CSE II Sem | F27: Sec-1 | G27: BEE01T1004 | H27: C003 | I27: 41
A28: 12 | B28: 21SCSE1010537 | C28: 21131012040 | D28: Anmol Ranjan | E28: B.Tech CSE II Sem | F28: Sec-1 | G28: BEE01T1004 | H28: C003 | I28: 43
A29: 12 | B29: 21SCSE1010540 | C29: 21131012042 | D29: Shreya Jha | E29: B.Tech CSE II Sem | F29: Sec-1 | G29: BEE01T1004 | H29: C003 | I29: 45
A30: 13 | B30: 21SCSE1010587 | C30: 21131012087 | D30: Amit Pant | E30: B.Tech CSE II Sem | F30: Sec-1 | G30: BEE01T1004 | H30: C003 | I30: 47
A31: 13 | B31: 21SCSE1010591 | C31: 21131012092 | D31: akanksha singh | E31: B.Tech CSE II Sem | F31: Sec-1 | G31: BEE01T1004 | H31: C003 | I31: 49
A32: 14 | B32: 21SCSE1011363 | C32: 21131012110 | D32: Aryan Prasad | E32: B.Tech CSE II Sem | F32: Sec-1 | G32: BEE01T1004 | H32: C003 | I32: 51
A33: 14 | B33: 21SCSE1010618 | C33: 21131012116 | D33: Nizam | E33: B.Tech CSE II Sem | F33: Sec-1 | G33: BEE01T1004 | H33: C003 | I33: 53
A34: 15 | B34: 21SCSE1010620 | C34: 21131012118 | D34: Shivang Singh | E34: B.Tech CSE II Sem | F34: Sec-1 | G34: BEE01T1004 | H34: C003 | I34: 55
A35: 15 | B35: 21SCSE1010626 | C35: 21131012123 | D35: Adil Khan | E35: B.Tech CSE II Sem | F35: Sec-1 | G35: BEE01T1004 | H35: C003 | I35: 57
A36: 16 | B36: 21SCSE1010627 | C36: 21131012124 | D36: Paras Maheshwari | E36: B.Tech CSE II Sem | F36: Sec-1 | G36: BEE01T1004 | H36: C003 | I36: 59
A37: 16 | B37: 21SCSE1010656 | C37: 21131012148 | D37: Jatin Suteri | E37: B.Tech CSE II Sem | F37: Sec-1 | G37: BEE01T1004 | H37: C008 | I37: 1
A38: 17 | B38: 21SCSE1010657 | C38: 21131012149 | D38: Jaya Mishra | E38: B.Tech CSE II Sem | F38: Sec-1 | G38: BEE01T1004 | H38: C008 | I38: =+I37+2 -> 3
A39: 17 | B39: 21SCSE1010664 | C39: 21131012156 | D39: Shubh Gupta | E39: B.Tech CSE II Sem | F39: Sec-1 | G39: BEE01T1004 | H39: C008 | I39: =+I38+2 -> 5
A40: 18 | B40: 21SCSE1010666 | C40: 21131012160 | D40: Javed Hussain | E40: B.Tech CSE II Sem | F40: Sec-1 | G40: BEE01T1004 | H40: C008 | I40: 7
A41: 18 | B41: 21SCSE1010680 | C41: 21131012174 | D41: SHASHANK SWAROOP SAXENA | E41: B.Tech CSE II Sem | F41: Sec-1 | G41: BEE01T1004 | H41: C008 | I41: 9
A42: 19 | B42: 21SCSE1010682 | C42: 21131012176 | D42: SHAMI ARSHAD | E42: B.Tech CSE II Sem | F42: Sec-1 | G42: BEE01T1004 | H42: C008 | I42: 11
A43: 19 | B43: 21SCSE1010696 | C43: 21131012188 | D43: Ashutosh Mishra | E43: B.Tech CSE II Sem | F43: Sec-1 | G43: BEE01T1004 | H43: C008 | I43: 13
A44: 20 | B44: 21SCSE1010701 | C44: 21131012192 | D44: Vanshaj Saxena | E44: B.Tech CSE II Sem | F44: Sec-1 | G44: BEE01T1004 | H44: C008 | I44: 15
A45: 20 | B45: 21SCSE1010702 | C45: 21131012193 | D45: Adarsh Sharma | E45: B.Tech CSE II Sem | F45: Sec-1 | G45: BEE01T1004 | H45: C008 | I45: 17
A46: 21 | B46: 21SCSE1010714 | C46: 21131012204 | D46: Akriti Rawat | E46: B.Tech CSE II Sem | F46: Sec-1 | G46: BEE01T1004 | H46: C008 | I46: 19
A47: 21 | B47: 21SCSE1010779 | C47: 21131012264 | D47: Jayestha Singh | E47: B.Tech CSE II Sem | F47: Sec-1 | G47: BEE01T1004 | H47: C008 | I47: 21
A48: 22 | B48: 21SCSE1010781 | C48: 21131012266 | D48: Keshav Lohiya | E48: B.Tech CSE II Sem | F48: Sec-1 | G48: BEE01T1004 | H48: C008 | I48: 23
A49: 22 | B49: 21SCSE1010809 | C49: 21131012288 | D49: Yogesh saini | E49: B.Tech CSE II Sem | F49: Sec-1 | G49: BEE01T1004 | H49: C008 | I49: 25
A50: 23 | B50: 21SCSE1010815 | C50: 21131012292 | D50: Yamini Raj | E50: B.Tech CSE II Sem | F50: Sec-1 | G50: BEE01T1004 | H50: C008 | I50: 27
A51: 23 | B51: 21SCSE1010833 | C51: 21131012305 | D51: Kanika Gupta | E51: B.Tech CSE II Sem | F51: Sec-1 | G51: BEE01T1004 | H51: C008 | I51: 29
A52: 24 | B52: 21SCSE1010837 | C52: 21131012308 | D52: Vanshika Chandna | E52: B.Tech CSE II Sem | F52: Sec-1 | G52: BEE01T1004 | H52: C008 | I52: 31
A53: 24 | B53: 21SCSE1010867 | C53: 21131012335 | D53: VAIBHAV SRIVASTAVA | E53: B.Tech CSE II Sem | F53: Sec-1 | G53: BEE01T1004 | H53: C008 | I53: 33
A54: 25 | B54: 21SCSE1010894 | C54: 21131012354 | D54: shweta pandey | E54: B.Tech CSE II Sem | F54: Sec-1 | G54: BEE01T1004 | H54: C008 | I54: 35
A55: 25 | B55: 21SCSE1010898 | C55: 21131012356 | D55: Yash Tijil | E55: B.Tech CSE II Sem | F55: Sec-1 | G55: BEE01T1004 | H55: C008 | I55: 37
A56: 26 | B56: 21SCSE1010910 | C56: 21131012367 | D56: Yash Mohan Samrutwar | E56: B.Tech CSE II Sem | F56: Sec-1 | G56: BEE01T1004 | H56: C008 | I56: 39
A57: 26 | B57: 21SCSE1010915 | C57: 21131012372 | D57: Deepankar Joshi | E57: B.Tech CSE II Sem | F57: Sec-1 | G57: BEE01T1004 | H57: C008 | I57: 41
A58: 27 | B58: 21SCSE1010937 | C58: 21131012392 | D58: Arpit Garg | E58: B.Tech CSE II Sem | F58: Sec-1 | G58: BEE01T1004 | H58: C008 | I58: 43
A59: 27 | B59: 21SCSE1011177 | C59: 21131012393 | D59: Vikash Giri | E59: B.Tech CSE II Sem | F59: Sec-1 | G59: BEE01T1004 | H59: C008 | I59: 45
A60: 28 | B60: 21SCSE1010948 | C60: 21131012402 | D60: Samyak karmant Anand | E60: B.Tech CSE II Sem | F60: Sec-1 | G60: BEE01T1004 | H60: C008 | I60: 47
A61: 28 | B61: 21SCSE1011369 | C61: 21131012564 | D61: Muskan Singh | E61: B.Tech CSE II Sem | F61: Sec-1 | G61: BEE01T1004 | H61: C008 | I61: 49
A62: 29 | B62: 21SCSE1011219 | C62: 21131012638 | D62: shan ali | E62: B.Tech CSE II Sem | F62: Sec-1 | G62: BEE01T1004 | H62: C008 | I62: 51
A63: 29 | B63: 21SCSE1011221 | C63: 21131012640 | D63: Kaushal singh | E63: B.Tech CSE II Sem | F63: Sec-1 | G63: BEE01T1004 | H63: C008 | I63: 53
A64: 30 | B64: 21SCSE1011238 | C64: 21131012656 | D64: Aryan Saifi | E64: B.Tech CSE II Sem | F64: Sec-1 | G64: BEE01T1004 | H64: C008 | I64: 55
A65: 30 | B65: 21SCSE1011241 | C65: 21131012658 | D65: rahul kumar | E65: B.Tech CSE II Sem | F65: Sec-1 | G65: BEE01T1004 | H65: C008 | I65: 57
A66: 31 | B66: 21SCSE1011244 | C66: 21131012660 | D66: Aniket singh | E66: B.Tech CSE II Sem | F66: Sec-1 | G66: BEE01T1004 | H66: C008 | I66: 59
A67: 31 | B67: 21SCSE1011248 | C67: 21131012664 | D67: Sirajuddin | E67: B.Tech CSE II Sem | F67: Sec-1 | G67: BEE01T1004 | H67: C107 | I67: 1
A68: 32 | B68: 21SCSE1011250 | C68: 21131012666 | D68: Anshil Chaudhary | E68: B.Tech CSE II Sem | F68: Sec-1 | G68: BEE01T1004 | H68: C107 | I68: =+I67+2 -> 3
A69: 32 | B69: 21SCSE1011254 | C69: 21131012669 | D69: Ujjwal Raj | E69: B.Tech CSE II Sem | F69: Sec-1 | G69: BEE01T1004 | H69: C107 | I69: =+I68+2 -> 5
A70: 33 | B70: 21SCSE1011259 | C70: 21131012674 | D70: Satyam Kumar Srivastava | E70: B.Tech CSE II Sem | F70: Sec-1 | G70: BEE01T1004 | H70: C107 | I70: 7
A71: 33 | B71: 21SCSE1011262 | C71: 21131012677 | D71: Tanisha Rastogi | E71: B.Tech CSE II Sem | F71: Sec-1 | G71: BEE01T1004 | H71: C107 | I71: 9
A72: =+A71+1 -> 34 | B72: 21SCSE1011264 | C72: 21131012679 | D72: Pranav Tiwary | E72: B.Tech CSE II Sem | F72: Sec-1 | G72: BEE01T1004 | H72: C107 | I72: 11
A73: 34 | B73: 21SCSE1011266 | C73: 21131012681 | D73: SIDDHARTHA RATAN | E73: B.Tech CSE II Sem | F73: Sec-1 | G73: BEE01T1004 | H73: C107 | I73: 13
A74: 35 | B74: 21SCSE1011303 | C74: 21131012682 | D74: MUHAMMAD ADNAN KHAN | E74: B.Tech CSE II Sem | F74: Sec-1 | G74: BEE01T1004 | H74: C107 | I74: 15
A75: 35 | B75: 21SCSE1011271 | C75: 21131012684 | D75: ANKIT KUMAR | E75: B.Tech CSE II Sem | F75: Sec-1 | G75: BEE01T1004 | H75: C107 | I75: 17
A76: 36 | B76: 21SCSE1011395 | C76: 21131012689 | D76: Shubhankar Bagchi | E76: B.Tech CSE II Sem | F76: Sec-1 | G76: BEE01T1004 | H76: C107 | I76: 19
A77: 36 | B77: 21SCSE1011439 | C77: 21131012745 | D77: Abhishek Pal | E77: B.Tech CSE II Sem | F77: Sec-1 | G77: BEE01T1004 | H77: C107 | I77: 21
A78: 37 | B78: 21SCSE1180005 | C78: 21131180254 | D78: Tanu kumari | E78: B.Tech CS (AIML) II Sem | F78: Sec-1 | G78: BEE01T1004 | H78: C107 | I78: 23
A79: 37 | B79: 21SCSE1180007 | C79: 21131180256 | D79: SANNYA SRIVASTAVA | E79: B.Tech CS (AIML) II Sem | F79: Sec-1 | G79: BEE01T1004 | H79: C107 | I79: 25
A80: 38 | B80: 21SCSE1180008 | C80: 21131180257 | D80: SAMRIDDHI GUPTA | E80: B.Tech CS (AIML) II Sem | F80: Sec-1 | G80: BEE01T1004 | H80: C107 | I80: 27
A81: 38 | B81: 21SCSE1180018 | C81: 21131180265 | D81: Aayushman Sharma | E81: B.Tech CS (AIML) II Sem | F81: Sec-1 | G81: BEE01T1004 | H81: C107 | I81: 29
A82: 39 | B82: 21SCSE1180020 | C82: 21131180267 | D82: Pratham Gangwal | E82: B.Tech CS (AIML) II Sem | F82: Sec-1 | G82: BEE01T1004 | H82: C107 | I82: 31
A83: 39 | B83: 21SCSE1180030 | C83: 21131180271 | D83: Aayushi Mathur | E83: B.Tech CS (AIML) II Sem | F83: Sec-1 | G83: BEE01T1004 | H83: C107 | I83: 33
A84: 40 | B84: 21SCSE1180025 | C84: 21131180275 | D84: akshat kamboj | E84: B.Tech CS (AIML) II Sem | F84: Sec-1 | G84: BEE01T1004 | H84: C107 | I84: 35
A85: 40 | B85: 21SCSE1180026 | C85: 21131180276 | D85: rushil darshan khare | E85: B.Tech CS (AIML) II Sem | F85: Sec-1 | G85: BEE01T1004 | H85: C107 | I85: 37
A86: 41 | B86: 21SCSE1180217 | C86: 21131180278 | D86: Kumar Alok Ranjan | E86: B.Tech CS (AIML) II Sem | F86: Sec-1 | G86: BEE01T1004 | H86: C107 | I86: 39
A87: 41 | B87: 21SCSE1180035 | C87: 21131180282 | D87: Bhavya singhal | E87: B.Tech CS (AIML) II Sem | F87: Sec-1 | G87: BEE01T1004 | H87: C107 | I87: 41
A88: 42 | B88: 21SCSE1180039 | C88: 21131180286 | D88: Riya Kashyap | E88: B.Tech CS (AIML) II Sem | F88: Sec-1 | G88: BEE01T1004 | H88: C107 | I88: 43
A89: 42 | B89: 21SCSE1180110 | C89: 21131180296 | D89: Vishnu . | E89: B.Tech CS (AIML) II Sem | F89: Sec-1 | G89: BEE01T1004 | H89: C107 | I89: 45
A90: 43 | B90: 21SCSE1180219 | C90: 21131180298 | D90: ROHIT KUMAR | E90: B.Tech CS (AIML) II Sem | F90: Sec-1 | G90: BEE01T1004 | H90: C107 | I90: 47
A91: 43 | B91: 21SCSE1180049 | C91: 21131180299 | D91: Ayush Mishra | E91: B.Tech CS (AIML) II Sem | F91: Sec-1 | G91: BEE01T1004 | H91: C107 | I91: 49
A92: 44 | B92: 21SCSE1180050 | C92: 21131180300 | D92: Nakul rana | E92: B.Tech CS (AIML) II Sem | F92: Sec-1 | G92: BEE01T1004 | H92: C107 | I92: 51
A93: 44 | B93: 21SCSE1180051 | C93: 21131180301 | D93: Garvit Verma | E93: B.Tech CS (AIML) II Sem | F93: Sec-1 | G93: BEE01T1004 | H93: C107 | I93: 53
A94: 45 | B94: 21SCSE1180218 | C94: 21131180304 | D94: gurjas kaur . | E94: B.Tech CS (AIML) II Sem | F94: Sec-1 | G94: BEE01T1004 | H94: C107 | I94: 55
A95: 45 | B95: 21SCSE1180057 | C95: 21131180307 | D95: Paras Singhal | E95: B.Tech CS (AIML) II Sem | F95: Sec-1 | G95: BEE01T1004 | H95: C107 | I95: 57
A96: 46 | B96: 21SCSE1180058 | C96: 21131180308 | D96: Kritika Pandey | E96: B.Tech CS (AIML) II Sem | F96: Sec-1 | G96: BEE01T1004 | H96: C107 | I96: 59
A97: 46 | B97: 21SCSE1180059 | C97: 21131180309 | D97: vanshika bhardwaj | E97: B.Tech CS (AIML) II Sem | F97: Sec-1 | G97: BEE01T1004 | H97: C108 | I97: 1
A98: 47 | B98: 21SCSE1180060 | C98: 21131180310 | D98: Pratham Singh Chauhan | E98: B.Tech CS (AIML) II Sem | F98: Sec-1 | G98: BEE01T1004 | H98: C108 | I98: =+I97+2 -> 3
A99: 47 | B99: 21SCSE1180061 | C99: 21131180311 | D99: Adarsh Singh | E99: B.Tech CS (AIML) II Sem | F99: Sec-1 | G99: BEE01T1004 | H99: C108 | I99: =+I98+2 -> 5
A100: 48 | B100: 21SCSE1180062 | C100: 21131180312 | D100: Bhavya Kukreti | E100: B.Tech CS (AIML) II Sem | F100: Sec-1 | G100: BEE01T1004 | H100: C108 | I100: 7
A101: 48 | B101: 21SCSE1180063 | C101: 21131180313 | D101: Prince Kumar | E101: B.Tech CS (AIML) II Sem | F101: Sec-1 | G101: BEE01T1004 | H101: C108 | I101: 9
A102: 49 | B102: 21SCSE1180064 | C102: 21131180314 | D102: Ayush Ranjan | E102: B.Tech CS (AIML) II Sem | F102: Sec-1 | G102: BEE01T1004 | H102: C108 | I102: 11
A103: 49 | B103: 21SCSE1180066 | C103: 21131180316 | D103: Dhananjay Singh | E103: B.Tech CS (AIML) II Sem | F103: Sec-1 | G103: BEE01T1004 | H103: C108 | I103: 13
A104: 50 | B104: 21SCSE1180068 | C104: 21131180318 | D104: Abhishek Kumar Singh | E104: B.Tech CS (AIML) II Sem | F104: Sec-1 | G104: BEE01T1004 | H104: C108 | I104: 15
A105: 50 | B105: 21SCSE1180072 | C105: 21131180323 | D105: Manas Chauhan | E105: B.Tech CS (AIML) II Sem | F105: Sec-1 | G105: BEE01T1004 | H105: C108 | I105: 17
A106: 51 | B106: 21SCSE1180076 | C106: 21131180325 | D106: Zafeer Khan | E106: B.Tech CS (AIML) II Sem | F106: Sec-1 | G106: BEE01T1004 | H106: C108 | I106: 19
A107: 51 | B107: 21SCSE1180086 | C107: 21131180331 | D107: Tushar Panwar | E107: B.Tech CS (AIML) II Sem | F107: Sec-1 | G107: BEE01T1004 | H107: C108 | I107: 21
A108: 52 | B108: 21SCSE1180099 | C108: 21131180333 | D108: BHUMIKA GUPTA | E108: B.Tech CS (AIML) II Sem | F108: Sec-1 | G108: BEE01T1004 | H108: C108 | I108: 23
A109: 52 | B109: 21SCSE1180091 | C109: 21131180336 | D109: Abhiraj Singh Sengar | E109: B.Tech CS (AIML) II Sem | F109: Sec-1 | G109: BEE01T1004 | H109: C108 | I109: 25
A110: 53 | B110: 21SCSE1180092 | C110: 21131180337 | D110: saksham Kumar singh | E110: B.Tech CS (AIML) II Sem | F110: Sec-1 | G110: BEE01T1004 | H110: C108 | I110: 27
A111: 53 | B111: 21SCSE1180095 | C111: 21131180341 | D111: Kushagra Chaudhary | E111: B.Tech CS (AIML) II Sem | F111: Sec-1 | G111: BEE01T1004 | H111: C108 | I111: 29
A112: 54 | B112: 21SCSE1180096 | C112: 21131180342 | D112: Shubhangi Jain | E112: B.Tech CS (AIML) II Sem | F112: Sec-1 | G112: BEE01T1004 | H112: C108 | I112: 31
A113: 54 | B113: 21SCSE1180097 | C113: 21131180343 | D113: Sulekha Mondal | E113: B.Tech CS (AIML) II Sem | F113: Sec-1 | G113: BEE01T1004 | H113: C108 | I113: 33
A114: 55 | B114: 21SCSE1180150 | C114: 21131180344 | D114: Gurudas maurya | E114: B.Tech CS (AIML) II Sem | F114: Sec-1 | G114: BEE01T1004 | H114: C108 | I114: 35
A115: 55 | B115: 21SCSE1180101 | C115: 21131180346 | D115: Aastha | E115: B.Tech CS (AIML) II Sem | F115: Sec-1 | G115: BEE01T1004 | H115: C108 | I115: 37
A116: 56 | B116: 21SCSE1180104 | C116: 21131180349 | D116: Shailja Mishra | E116: B.Tech CS (AIML) II Sem | F116: Sec-1 | G116: BEE01T1004 | H116: C108 | I116: 39
A117: 56 | B117: 21SCSE1180109 | C117: 21131180354 | D117: Ayush Aggarwal | E117: B.Tech CS (AIML) II Sem | F117: Sec-1 | G117: BEE01T1004 | H117: C108 | I117: 41
A118: 57 | B118: 21SCSE1180111 | C118: 21131180355 | D118: Dikshay kumar | E118: B.Tech CS (AIML) II Sem | F118: Sec-1 | G118: BEE01T1004 | H118: C108 | I118: 43
A119: 57 | B119: 21SCSE1180121 | C119: 21131180359 | D119: Ayush kumar Sinha | E119: B.Tech CS (AIML) II Sem | F119: Sec-1 | G119: BEE01T1004 | H119: C108 | I119: 45
A120: 58 | B120: 21SCSE1180122 | C120: 21131180360 | D120: Ayush Srivastava | E120: B.Tech CS (AIML) II Sem | F120: Sec-1 | G120: BEE01T1004 | H120: C108 | I120: 47
A121: 58 | B121: 21SCSE1180123 | C121: 21131180361 | D121: kushagra sharma | E121: B.Tech CS (AIML) II Sem | F121: Sec-1 | G121: BEE01T1004 | H121: C108 | I121: 49
A122: 59 | B122: 21SCSE1180126 | C122: 21131180364 | D122: Darshika gupta | E122: B.Tech CS (AIML) II Sem | F122: Sec-1 | G122: BEE01T1004 | H122: C108 | I122: 51
A123: 59 | B123: 21SCSE1180130 | C123: 21131180369 | D123: Pranay Khati | E123: B.Tech CS (AIML) II Sem | F123: Sec-1 | G123: BEE01T1004 | H123: C108 | I123: 53
A124: 60 | B124: 21SCSE1180131 | C124: 21131180370 | D124: Sanchit Khudaniya | E124: B.Tech CS (AIML) II Sem | F124: Sec-1 | G124: BEE01T1004 | H124: C108 | I124: 55
A125: 60 | B125: 21SCSE1180132 | C125: 21131180371 | D125: Paras Seekhwal | E125: B.Tech CS (AIML) II Sem | F125: Sec-1 | G125: BEE01T1004 | H125: C108 | I125: 57
A126: 61 | B126: 21SCSE1180134 | C126: 21131180373 | D126: Rishabh Jaiswal | E126: B.Tech CS (AIML) II Sem | F126: Sec-1 | G126: BEE01T1004 | H126: C108 | I126: 59
A127: 61 | B127: 21SCSE1180192 | C127: 21131180376 | D127: Harshit Singh | E127: B.Tech CS (AIML) II Sem | F127: Sec-1 | G127: BEE01T1004 | H127: C109 | I127: 1
A128: 62 | B128: 21SCSE1180136 | C128: 21131180379 | D128: Adarsh Bajpai | E128: B.Tech CS (AIML) II Sem | F128: Sec-1 | G128: BEE01T1004 | H128: C109 | I128: =+I127+2 -> 3
A129: 62 | B129: 21SCSE1180138 | C129: 21131180380 | D129: Aryan Singh | E129: B.Tech CS (AIML) II Sem | F129: Sec-1 | G129: BEE01T1004 | H129: C109 | I129: =+I128+2 -> 5
A130: 63 | B130: 21SCSE1180139 | C130: 21131180381 | D130: Madhav Gumber | E130: B.Tech CS (AIML) II Sem | F130: Sec-1 | G130: BEE01T1004 | H130: C109 | I130: 7
A131: 63 | B131: 21SCSE1180195 | C131: 21131180382 | D131: shariq . | E131: B.Tech CS (AIML) II Sem | F131: Sec-1 | G131: BEE01T1004 | H131: C109 | I131: 9
A132: 64 | B132: 21SCSE1180140 | C132: 21131180383 | D132: AYUSH RANJAN | E132: B.Tech CS (AIML) II Sem | F132: Sec-1 | G132: BEE01T1004 | H132: C109 | I132: 11
A133: 64 | B133: 21SCSE1180141 | C133: 21131180384 | D133: Ayush Choudhary | E133: B.Tech CS (AIML) II Sem | F133: Sec-1 | G133: BEE01T1004 | H133: C109 | I133: 13
A134: 65 | B134: 21SCSE1180142 | C134: 21131180385 | D134: Sparsh Jain | E134: B.Tech CS (AIML) II Sem | F134: Sec-1 | G134: BEE01T1004 | H134: C109 | I134: 15
A135: 65 | B135: 21SCSE1180144 | C135: 21131180388 | D135: Govind Kumar Prajapati | E135: B.Tech CS (AIML) II Sem | F135: Sec-1 | G135: BEE01T1004 | H135: C109 | I135: 17
A136: =+A135+1 -> 66 | B136: 21SCSE1180146 | C136: 21131180389 | D136: AKASH KUMAR | E136: B.Tech CS (AIML) II Sem | F136: Sec-1 | G136: BEE01T1004 | H136: C109 | I136: 19
A137: 66 | B137: 21SCSE1180147 | C137: 21131180390 | D137: AYUSH SHANDILYA | E137: B.Tech CS (AIML) II Sem | F137: Sec-1 | G137: BEE01T1004 | H137: C109 | I137: 21
A138: 67 | B138: 21SCSE1180152 | C138: 21131180392 | D138: Meesha Khanna | E138: B.Tech CS (AIML) II Sem | F138: Sec-1 | G138: BEE01T1004 | H138: C109 | I138: 23
A139: 67 | B139: 21SCSE1180154 | C139: 21131180394 | D139: Sarthak tyagi | E139: B.Tech CS (AIML) II Sem | F139: Sec-1 | G139: BEE01T1004 | H139: C109 | I139: 25
A140: 68 | B140: 21SCSE1180243 | C140: 21131180397 | D140: Shivanshu Rai | E140: B.Tech CS (AIML) II Sem | F140: Sec-1 | G140: BEE01T1004 | H140: C109 | I140: 27
A141: 68 | B141: 21SCSE1180215 | C141: 21131180403 | D141: Ritwik jain | E141: B.Tech CS (AIML) II Sem | F141: Sec-1 | G141: BEE01T1004 | H141: C109 | I141: 29
A142: 69 | B142: 21SCSE1180185 | C142: 21131180421 | D142: Rituraj Gupta | E142: B.Tech CS (AIML) II Sem | F142: Sec-1 | G142: BEE01T1004 | H142: C109 | I142: 31
A143: 69 | B143: 21SCSE1180276 | C143: 21131180433 | D143: SACHIN KUMAR MAHTO | E143: B.Tech CS (AIML) II Sem | F143: Sec-1 | G143: BEE01T1004 | H143: C109 | I143: 33
A144: 70 | B144: 21SCSE1180212 | C144: 21131180437 | D144: Priyanshu Gupta | E144: B.Tech CS (AIML) II Sem | F144: Sec-1 | G144: BEE01T1004 | H144: C109 | I144: 35
A145: 70 | B145: 21SCSE1180223 | C145: 21131180438 | D145: Gaurav Singh | E145: B.Tech CS (AIML) II Sem | F145: Sec-1 | G145: BEE01T1004 | H145: C109 | I145: 37
A146: 71 | B146: 21SCSE1180233 | C146: 21131180442 | D146: Dheeraj Kumar Swain | E146: B.Tech CS (AIML) II Sem | F146: Sec-1 | G146: BEE01T1004 | H146: C109 | I146: 39
A147: 71 | B147: 21SCSE1180235 | C147: 21131180444 | D147: Shikhar Chaturvedi | E147: B.Tech CS (AIML) II Sem | F147: Sec-1 | G147: BEE01T1004 | H147: C109 | I147: 41
A148: 72 | B148: 21SCSE1180258 | C148: 21131180458 | D148: Ishank Mishra | E148: B.Tech CS (AIML) II Sem | F148: Sec-1 | G148: BEE01T1004 | H148: C109 | I148: 43
A149: 72 | B149: 21SCSE1180266 | C149: 21131180465 | D149: Paras Arora | E149: B.Tech CS (AIML) II Sem | F149: Sec-1 | G149: BEE01T1004 | H149: C109 | I149: 45
A150: 73 | B150: 21SCSE1050002 | C150: 21131050016 | D150: Faizan Parvez | E150: B.Tech CSE CCV II Sem | F150: Sec-1 | G150: BEE01T1004 | H150: C109 | I150: 47
A151: 73 | B151: 21SCSE1050004 | C151: 21131050018 | D151: Yuvraj singh chauhan | E151: B.Tech CSE CCV II Sem | F151: Sec-1 | G151: BEE01T1004 | H151: C109 | I151: 49
A152: 74 | B152: 21SCSE1050005 | C152: 21131050019 | D152: zaheer khan | E152: B.Tech CSE CCV II Sem | F152: Sec-1 | G152: BEE01T1004 | H152: C109 | I152: 51
A153: 74 | B153: 21SCSE1050006 | C153: 21131050020 | D153: Arjeet Singh | E153: B.Tech CSE CCV II Sem | F153: Sec-1 | G153: BEE01T1004 | H153: C109 | I153: 53
A154: 75 | B154: 21SCSE1050007 | C154: 21131050021 | D154: Samridhi Tyagi | E154: B.Tech CSE CCV II Sem | F154: Sec-1 | G154: BEE01T1004 | H154: C109 | I154: 55
A155: 75 | B155: 21SCSE1050008 | C155: 21131050022 | D155: Manoj Kumar | E155: B.Tech CSE CCV II Sem | F155: Sec-1 | G155: BEE01T1004 | H155: C109 | I155: 57
A156: 76 | B156: 21SCSE1050009 | C156: 21131050023 | D156: Aditya Narendra. | E156: B.Tech CSE CCV II Sem | F156: Sec-1 | G156: BEE01T1004 | H156: C109 | I156: 59
A157: 76 | B157: 21SCSE1050010 | C157: 21131050024 | D157: shashank singh | E157: B.Tech CSE CCV II Sem | F157: Sec-1 | G157: BEE01T1004 | H157: C110 | I157: 1
A158: 77 | B158: 21SCSE1050011 | C158: 21131050025 | D158: Bajrangi goyal | E158: B.Tech CSE CCV II Sem | F158: Sec-1 | G158: BEE01T1004 | H158: C110 | I158: =+I157+2 -> 3
A159: 77 | B159: 21SCSE1050014 | C159: 21131050026 | D159: Aditya Bhardwaj | E159: B.Tech CSE CCV II Sem | F159: Sec-1 | G159: BEE01T1004 | H159: C110 | I159: =+I158+2 -> 5
A160: 78 | B160: 21SCSE1050015 | C160: 21131050027 | D160: ASIF KALAM | E160: B.Tech CSE CCV II Sem | F160: Sec-1 | G160: BEE01T1004 | H160: C110 | I160: 7
A161: 78 | B161: 21SCSE1280001 | C161: 21131280040 | D161: Rohit Singh | E161: B.Tech AIDS II Sem | F161: Sec-1 | G161: BEE01T1004 | H161: C110 | I161: 9
A162: 79 | B162: 21SCSE1280002 | C162: 21131280041 | D162: Aditya kumar singh | E162: B.Tech AIDS II Sem | F162: Sec-1 | G162: BEE01T1004 | H162: C110 | I162: 11
A163: 79 | B163: 21SCSE1280003 | C163: 21131280042 | D163: Hritik Negi | E163: B.Tech AIDS II Sem | F163: Sec-1 | G163: BEE01T1004 | H163: C110 | I163: 13
A164: 80 | B164: 21SCSE1280004 | C164: 21131280043 | D164: Naitik gautam | E164: B.Tech AIDS II Sem | F164: Sec-1 | G164: BEE01T1004 | H164: C110 | I164: 15
A165: 80 | B165: 21SCSE1280006 | C165: 21131280044 | D165: Raja kumar | E165: B.Tech AIDS II Sem | F165: Sec-1 | G165: BEE01T1004 | H165: C110 | I165: 17
A166: 81 | B166: 21SCSE1280008 | C166: 21131280045 | D166: AYUSH BHARDWAJ | E166: B.Tech AIDS II Sem | F166: Sec-1 | G166: BEE01T1004 | H166: C110 | I166: 19
A167: 81 | B167: 21SCSE1280012 | C167: 21131280047 | D167: Anshika Agarwal | E167: B.Tech AIDS II Sem | F167: Sec-1 | G167: BEE01T1004 | H167: C110 | I167: 21
A168: 82 | B168: 21SCSE1280015 | C168: 21131280048 | D168: KARTIK ATTRI | E168: B.Tech AIDS II Sem | F168: Sec-1 | G168: BEE01T1004 | H168: C110 | I168: 23
A169: 82 | B169: 21SCSE1280017 | C169: 21131280049 | D169: Aman Singh | E169: B.Tech AIDS II Sem | F169: Sec-1 | G169: BEE01T1004 | H169: C110 | I169: 25
A170: 83 | B170: 21SCSE1280019 | C170: 21131280050 | D170: Devanshu Singh | E170: B.Tech AIDS II Sem | F170: Sec-1 | G170: BEE01T1004 | H170: C110 | I170: 27
A171: 83 | B171: 21SCSE1280020 | C171: 21131280051 | D171: SUYASH GUPTA | E171: B.Tech AIDS II Sem | F171: Sec-1 | G171: BEE01T1004 | H171: C110 | I171: 29
A172: 84 | B172: 21SCSE1280021 | C172: 21131280052 | D172: Ankur Singh | E172: B.Tech AIDS II Sem | F172: Sec-1 | G172: BEE01T1004 | H172: C110 | I172: 31
A173: 84 | B173: 21SCSE1280022 | C173: 21131280053 | D173: SUDHANSHU SINGH | E173: B.Tech AIDS II Sem | F173: Sec-1 | G173: BEE01T1004 | H173: C110 | I173: 33
A174: 85 | B174: 21SCSE1280023 | C174: 21131280054 | D174: Agrima Saxena | E174: B.Tech AIDS II Sem | F174: Sec-1 | G174: BEE01T1004 | H174: C110 | I174: 35
A175: 85 | B175: 21SCSE1280024 | C175: 21131280055 | D175: Shubham bhadana | E175: B.Tech AIDS II Sem | F175: Sec-1 | G175: BEE01T1004 | H175: C110 | I175: 37
A176: 86 | B176: 21SCSE1280025 | C176: 21131280056 | D176: Akansha Rajput | E176: B.Tech AIDS II Sem | F176: Sec-1 | G176: BEE01T1004 | H176: C110 | I176: 39
A177: 86 | B177: 21SCSE1280026 | C177: 21131280057 | D177: PRADYUMNA . | E177: B.Tech AIDS II Sem | F177: Sec-1 | G177: BEE01T1004 | H177: C110 | I177: 41
A178: 87 | B178: 21SCSE1280030 | C178: 21131280058 | D178: Akarshan Upadhyay | E178: B.Tech AIDS II Sem | F178: Sec-1 | G178: BEE01T1004 | H178: C110 | I178: 43
A179: 87 | B179: 21SCSE1280031 | C179: 21131280059 | D179: Nitish Verma | E179: B.Tech AIDS II Sem | F179: Sec-1 | G179: BEE01T1004 | H179: C110 | I179: 45
A180: 88 | B180: 21SCSE1280032 | C180: 21131280060 | D180: Awadhesh Pandey | E180: B.Tech AIDS II Sem | F180: Sec-1 | G180: BEE01T1004 | H180: C110 | I180: 47
A181: 88 | B181: 21SCSE1280033 | C181: 21131280061 | D181: Ankit kumar | E181: B.Tech AIDS II Sem | F181: Sec-1 | G181: BEE01T1004 | H181: C110 | I181: 49
A182: 89 | B182: 21SCSE1280034 | C182: 21131280062 | D182: Harsh vardhan sharma | E182: B.Tech AIDS II Sem | F182: Sec-1 | G182: BEE01T1004 | H182: C110 | I182: 51
A183: 89 | B183: 21SCSE1280035 | C183: 21131280063 | D183: VARUN SINGH | E183: B.Tech AIDS II Sem | F183: Sec-1 | G183: BEE01T1004 | H183: C110 | I183: 53
A184: 90 | B184: 21SCSE1280037 | C184: 21131280064 | D184: Siddhant Thakur | E184: B.Tech AIDS II Sem | F184: Sec-1 | G184: BEE01T1004 | H184: C110 | I184: 55
A185: 90 | B185: 21SCSE1280038 | C185: 21131280065 | D185: Shahim Ali | E185: B.Tech AIDS II Sem | F185: Sec-1 | G185: BEE01T1004 | H185: C110 | I185: 57
A186: 91 | B186: 21SCSE1280039 | C186: 21131280066 | D186: SURYANSH TIWARI | E186: B.Tech AIDS II Sem | F186: Sec-1 | G186: BEE01T1004 | H186: C110 | I186: 59
A187: 91 | B187: 21SCSE1280040 | C187: 21131280067 | D187: VEER PRATAP | E187: B.Tech AIDS II Sem | F187: Sec-1 | G187: BEE01T1004 | H187: C111 | I187: 1
A188: 92 | B188: 21SCSE1280042 | C188: 21131280068 | D188: Ananya Misra | E188: B.Tech AIDS II Sem | F188: Sec-1 | G188: BEE01T1004 | H188: C111 | I188: =+I187+2 -> 3
A189: 92 | B189: 21SCSE1280043 | C189: 21131280069 | D189: Ankur Jaiswal | E189: B.Tech AIDS II Sem | F189: Sec-1 | G189: BEE01T1004 | H189: C111 | I189: =+I188+2 -> 5
A190: 93 | B190: 21SCSE1280045 | C190: 21131280070 | D190: Vaibhav Kumar Srivastav | E190: B.Tech AIDS II Sem | F190: Sec-1 | G190: BEE01T1004 | H190: C111 | I190: 7
A191: 93 | B191: 21SCSE1280047 | C191: 21131280071 | D191: anagh vats | E191: B.Tech AIDS II Sem | F191: Sec-1 | G191: BEE01T1004 | H191: C111 | I191: 9
A192: 94 | B192: 21SCSE1280048 | C192: 21131280072 | D192: Priyanshu Talyan | E192: B.Tech AIDS II Sem | F192: Sec-1 | G192: BEE01T1004 | H192: C111 | I192: 11
A193: 94 | B193: 21SCSE1280051 | C193: 21131280073 | D193: Madhav Sharma | E193: B.Tech AIDS II Sem | F193: Sec-1 | G193: BEE01T1004 | H193: C111 | I193: 13
A194: 95 | B194: 21SCSE1280055 | C194: 21131280074 | D194: Harsh chauhan | E194: B.Tech AIDS II Sem | F194: Sec-1 | G194: BEE01T1004 | H194: C111 | I194: 15
A195: 95 | B195: 21SCSE1280056 | C195: 21131280075 | D195: Lakshay Sharma | E195: B.Tech AIDS II Sem | F195: Sec-1 | G195: BEE01T1004 | H195: C111 | I195: 17
A196: 96 | B196: 21SCSE1280052 | C196: 21131280076 | D196: Shiwendra kumar singh | E196: B.Tech AIDS II Sem | F196: Sec-1 | G196: BEE01T1004 | H196: C111 | I196: 19
A197: 96 | B197: 21SCSE1280054 | C197: 21131280077 | D197: kanishka sharma | E197: B.Tech AIDS II Sem | F197: Sec-1 | G197: BEE01T1004 | H197: C111 | I197: 21
A198: 97 | B198: 21SCSE1280058 | C198: 21131280078 | D198: yash raj | E198: B.Tech AIDS II Sem | F198: Sec-1 | G198: BEE01T1004 | H198: C111 | I198: 23
A199: 97 | B199: 21SCSE1410040 | C199: 21131410085 | D199: Vivek Dagar | E199: B.Tech CSE-AI II Sem | F199: Sec-1 | G199: BEE01T1004 | H199: C111 | I199: 25
A200: =+A199+1 -> 98 | B200: 21SCSE1410002 | C200: 21131410086 | D200: Anubhav Shukla | E200: B.Tech CSE-AI II Sem | F200: Sec-1 | G200: BEE01T1004 | H200: C111 | I200: 27
... 3056 more rows
